Workbook

Sheet Projected Cash Flows
B1: INSTRUCTIONS: Do Not fill in any information. Leave this tab blank
B3: FIVE YEAR PROFORMA AND INTERNAL RATE OF RETURN
B5: Description | C5: ='Annualized Revenue Operating'!D5 -> Jan - Sept 2025 T-9 Annualized | D5: Year 1 | E5: Year 2 | F5: Year 3 | G5: Year 4 | H5: Year 5
B6: Blended $/SF Rates | C6: =(C7/(Assumptions!$C$6))/12 -> 1.51860047 | D6: =(D7/(Assumptions!$C$6))/12 -> 1.564158484 | E6: =(E7/(Assumptions!$C$6))/12 -> 1.611083239 | F6: =(F7/(Assumptions!$C$6))/12 -> 1.675526568 | G6: =(G7/(Assumptions!$C$6))/12 -> 1.742547631 | H6: =(H7/(Assumptions!$C$6))/12 -> 1.812249536 | J6: YoY % Growth | P6: Achieved Rate Growth Analysis
B7: =+'Annualized Revenue Operating'!B7 -> Potential Gross Rental Income | C7: ='Annualized Revenue Operating'!D7 -> 395316 | D7: =+C7*(1+Assumptions!$C$9) -> 407175.48 | E7: =+D7*(1+Assumptions!$C$9) -> 419390.7444 | F7: =+E7*(1+Assumptions!$C$10) -> 436166.3742 | G7: =+F7*(1+Assumptions!$C$10) -> 453613.0291 | H7: =+G7*(1+Assumptions!$C$10) -> 471757.5503 | J7: =(D7-C7)/C7 -> 0.03 | K7: =(E7-D7)/D7 -> 0.03 | L7: =(F7-E7)/E7 -> 0.04 | M7: =(G7-F7)/F7 -> 0.04 | N7: =(H7-G7)/G7 -> 0.04 | P7: =D9/(Assumptions!$C$6*'Annualized Revenue Operating'!P26) -> 18.76990181 | Q7: =E9/(Assumptions!$C$6*'Annualized Revenue Operating'!P27) -> 19.33299887 | R7: =F9/(Assumptions!$C$6*'Annualized Revenue Operating'!P28) -> 20.10631882 | S7: =G9/(Assumptions!$C$6*'Annualized Revenue Operating'!P29) -> 20.91057157 | T7: =H9/(Assumptions!$C$6*'Annualized Revenue Operating'!P30) -> 21.74699444
B8: =+'Annualized Revenue Operating'!B8 -> Vacancy, Discounts & Credit Loss | C8: ='Annualized Revenue Operating'!D8 -> -30556 | D8: =+D9-D7 -> -40717.548 | E8: =+E9-E7 -> -41939.07444 | F8: =+F9-F7 -> -43616.63742 | G8: =+G9-G7 -> -45361.30291 | H8: =+H9-H7 -> -47175.75503 | P8: =P7/12 -> 1.564158484 | Q8: =Q7/12 -> 1.611083239 | R8: =R7/12 -> 1.675526568 | S8: =S7/12 -> 1.742547631 | T8: =T7/12 -> 1.812249536
B9: =+'Annualized Revenue Operating'!B9 -> Gross Rental Income | C9: =+'Annualized Revenue Operating'!D9 -> 364760 | D9: =+D7*Assumptions!$C$12 -> 366457.932 | E9: =+E7*Assumptions!$C$13 -> 377451.67 | F9: =+F7*Assumptions!$C$14 -> 392549.7368 | G9: =+G7*Assumptions!$C$15 -> 408251.7262 | H9: =+H7*Assumptions!$C$16 -> 424581.7953 | J9: =(D9-C9)/C9 -> 0.004654929269 | K9: =(E9-D9)/D9 -> 0.03 | L9: =(F9-E9)/E9 -> 0.04 | M9: =(G9-F9)/F9 -> 0.04 | N9: =(H9-G9)/G9 -> 0.04
B10: =+'Annualized Revenue Operating'!B10 -> Late/Admin/Other Fee Income | C10: =+'Annualized Revenue Operating'!D10 -> 5550 | D10: =+C10*(1+Assumptions!$C$10) -> 5772 | E10: =+D10*(1+Assumptions!$C$10) -> 6002.88 | F10: =+E10*(1+Assumptions!$C$10) -> 6242.9952 | G10: =+F10*(1+Assumptions!$C$10) -> 6492.715008 | H10: =+G10*(1+Assumptions!$C$10) -> 6752.423608
B11: =+'Annualized Revenue Operating'!B11 -> Retail Product Sales (locks, boxes, etc.) | C11: =+'Annualized Revenue Operating'!D11 -> 34 | D11: =+C11*(1+Assumptions!$C$10) -> 35.36 | E11: =+D11*(1+Assumptions!$C$10) -> 36.7744 | F11: =+E11*(1+Assumptions!$C$10) -> 38.245376 | G11: =+F11*(1+Assumptions!$C$10) -> 39.77519104 | H11: =+G11*(1+Assumptions!$C$10) -> 41.36619868
B12: =+'Annualized Revenue Operating'!B12 -> Tenant Insurance | C12: =+'Annualized Revenue Operating'!D12 -> 3738 | D12: =((('Annualized Revenue Operating'!N26*'Annualized Revenue Operating'!N34)*'Annualized Revenue Operating'!N33)*'Annualized Revenue Operating'!N32)*12 -> 2563.046809 | E12: =((('Annualized Revenue Operating'!N27*'Annualized Revenue Operating'!N35)*'Annualized Revenue Operating'!N33)*'Annualized Revenue Operating'!N32)*12 -> 2920.32 | F12: =((('Annualized Revenue Operating'!N28*'Annualized Revenue Operating'!N36)*'Annualized Revenue Operating'!N33)*'Annualized Revenue Operating'!N32)*12 -> 3285.36 | G12: =((('Annualized Revenue Operating'!N29*'Annualized Revenue Operating'!N37)*'Annualized Revenue Operating'!N33)*'Annualized Revenue Operating'!N32)*12 -> 3650.4 | H12: =+G12*(1+Assumptions!$C$10) -> 3796.416
B13: Commercial Income | C13: =+'Annualized Revenue Operating'!D13 -> 222909.12 | D13: =+C13*(1+Assumptions!$C$10) -> 231825.4848 | E13: =+D13*(1+Assumptions!$C$10) -> 241098.5042 | F13: =+E13*(1+Assumptions!$C$10) -> 250742.4444 | G13: =+F13*(1+Assumptions!$C$10) -> 260772.1421 | H13: =+G13*(1+Assumptions!$C$10) -> 271203.0278
B14: =+'Annualized Revenue Operating'!B14 -> CAM Reimbursement | C14: =+'Annualized Revenue Operating'!D14 -> 14721 | D14: =+C14*(1+Assumptions!$C$10) -> 15309.84 | E14: =+D14*(1+Assumptions!$C$10) -> 15922.2336 | F14: =+E14*(1+Assumptions!$C$10) -> 16559.12294 | G14: =+F14*(1+Assumptions!$C$10) -> 17221.48786 | H14: =+G14*(1+Assumptions!$C$10) -> 17910.34738
B15: =+'Annualized Revenue Operating'!B15 -> Effective Gross Revenue | C15: =SUM(C9:C14) -> 611712.12 | D15: 621963.6636 | E15: 643432.3822 | F15: 669417.9046 | G15: 696428.2464 | H15: 724285.3763 | J15: =(D15-C15)/C15 -> 0.01675877144 | K15: =(E15-D15)/D15 -> 0.03451764114 | L15: =(F15-E15)/E15 -> 0.04038578599 | M15: =(G15-F15)/F15 -> 0.04034899813 | N15: =(H15-G15)/G15 -> 0.04
C17: ='Annualized Revenue Operating'!D17 -> Jan - Sept 2025 T-9 Annualized
B18: Operating Expenses
B19: =+'Annualized Revenue Operating'!B19 -> Marketing & Advertising | C19: =+'Annualized Revenue Operating'!D19 -> 19393 | D19: =+C19*(1+Assumptions!$C$19) -> 19780.86 | E19: =+D19*(1+Assumptions!$C$19) -> 20176.4772 | F19: =+E19*(1+Assumptions!$C$19) -> 20580.00674 | G19: =+F19*(1+Assumptions!$C$19) -> 20991.60688 | H19: =+G19*(1+Assumptions!$C$19) -> 21411.43902
B20: =+'Annualized Revenue Operating'!B20 -> Retail Product Costs | C20: =+'Annualized Revenue Operating'!D20 -> 17 | D20: =D11*0.5 -> 17.68 | E20: =E11*0.5 -> 18.3872 | F20: =F11*0.5 -> 19.122688 | G20: =G11*0.5 -> 19.88759552 | H20: =H11*0.5 -> 20.68309934
B21: =+'Annualized Revenue Operating'!B21 -> Bank & Credit Card Charges | C21: =+'Annualized Revenue Operating'!D21 -> 6294.304093 | D21: =D15*'Annualized Revenue Operating'!$N$16*'Annualized Revenue Operating'!$N$22 -> 10732.61441 | E21: =E15*'Annualized Revenue Operating'!$N$16*'Annualized Revenue Operating'!$N$22 -> 11103.07895 | F21: =F15*'Annualized Revenue Operating'!$N$16*'Annualized Revenue Operating'!$N$22 -> 11551.48552 | G21: =G15*'Annualized Revenue Operating'!$N$16*'Annualized Revenue Operating'!$N$22 -> 12017.57638 | H21: =H15*'Annualized Revenue Operating'!$N$16*'Annualized Revenue Operating'!$N$22 -> 12498.27944
B22: =+'Annualized Revenue Operating'!B22 -> Insurance | C22: =+'Annualized Revenue Operating'!D22 -> 13457 | D22: =+C22*(1+Assumptions!$C$19) -> 13726.14 | E22: =+D22*(1+Assumptions!$C$19) -> 14000.6628 | F22: =+E22*(1+Assumptions!$C$19) -> 14280.67606 | G22: =+F22*(1+Assumptions!$C$19) -> 14566.28958 | H22: =+G22*(1+Assumptions!$C$19) -> 14857.61537
B23: =+'Annualized Revenue Operating'!B23 -> Dues/Subscriptions & Licenses/Permits | C23: =+'Annualized Revenue Operating'!D23 -> 750 | D23: =+C23*(1+Assumptions!$C$19) -> 765 | E23: =+D23*(1+Assumptions!$C$19) -> 780.3 | F23: =+E23*(1+Assumptions!$C$19) -> 795.906 | G23: =+F23*(1+Assumptions!$C$19) -> 811.82412 | H23: =+G23*(1+Assumptions!$C$19) -> 828.0606024
B24: =+'Annualized Revenue Operating'!B24 -> Off-Site Management Fees | C24: =+'Annualized Revenue Operating'!D24 -> 25391.3736 | D24: =((D9+D10+D11+D12)*5%)+(D13*3%) -> 25696.18148 | E24: =((E9+E10+E11+E12)*5%)+(E13*3%) -> 26553.53734 | F24: 27628.0902 | G24: 28744.89509 | H24: 29894.69089
B25: =+'Annualized Revenue Operating'!B25 -> Office/Site Supplies | C25: =+'Annualized Revenue Operating'!D25 -> 1420 | D25: =+C25*(1+Assumptions!$C$19) -> 1448.4 | E25: =+D25*(1+Assumptions!$C$19) -> 1477.368 | F25: =+E25*(1+Assumptions!$C$19) -> 1506.91536 | G25: =+F25*(1+Assumptions!$C$19) -> 1537.053667 | H25: =+G25*(1+Assumptions!$C$19) -> 1567.794741
B26: =+'Annualized Revenue Operating'!B26 -> Postage & Handling | C26: =+'Annualized Revenue Operating'!D26 -> 500 | D26: =+C26*(1+Assumptions!$C$19) -> 510 | E26: =+D26*(1+Assumptions!$C$19) -> 520.2 | F26: =+E26*(1+Assumptions!$C$19) -> 530.604 | G26: =+F26*(1+Assumptions!$C$19) -> 541.21608 | H26: =+G26*(1+Assumptions!$C$19) -> 552.0404016
B27: =+'Annualized Revenue Operating'!B27 -> On-Site Management & Payroll | C27: =+'Annualized Revenue Operating'!D27 -> 37523 | D27: =+C27*(1+Assumptions!$C$19) -> 38273.46 | E27: =+D27*(1+Assumptions!$C$19) -> 39038.9292 | F27: =+E27*(1+Assumptions!$C$19) -> 39819.70778 | G27: =+F27*(1+Assumptions!$C$19) -> 40616.10194 | H27: =+G27*(1+Assumptions!$C$19) -> 41428.42398
B28: =+'Annualized Revenue Operating'!B28 -> Repairs & Maintenance | C28: =+'Annualized Revenue Operating'!D28 -> 5983.2 | D28: =+C28*(1+Assumptions!$C$19) -> 6102.864 | E28: =+D28*(1+Assumptions!$C$19) -> 6224.92128 | F28: =+E28*(1+Assumptions!$C$19) -> 6349.419706 | G28: =+F28*(1+Assumptions!$C$19) -> 6476.4081 | H28: =+G28*(1+Assumptions!$C$19) -> 6605.936262
B29: =+'Annualized Revenue Operating'!B29 -> Real Estate Taxes | C29: =+'Annualized Revenue Operating'!D29 -> 81314 | D29: =+C29*(1+Assumptions!$C$19) -> 82940.28 | E29: =D29*105% -> 87087.294 | F29: =+E29*(1+Assumptions!$C$19) -> 88829.03988 | G29: =+F29*(1+Assumptions!$C$19) -> 90605.62068 | H29: =+G29*(1+Assumptions!$C$19) -> 92417.73309
B30: =+'Annualized Revenue Operating'!B30 -> Telephone & Internet | C30: =+'Annualized Revenue Operating'!D30 -> 4172 | D30: =+C30*(1+Assumptions!$C$19) -> 4255.44 | E30: =+D30*(1+Assumptions!$C$19) -> 4340.5488 | F30: =+E30*(1+Assumptions!$C$19) -> 4427.359776 | G30: =+F30*(1+Assumptions!$C$19) -> 4515.906972 | H30: =+G30*(1+Assumptions!$C$19) -> 4606.225111
B31: =+'Annualized Revenue Operating'!B31 -> Utilities | C31: =+'Annualized Revenue Operating'!D31 -> 94304 | D31: =+C31*(1+Assumptions!$C$19) -> 96190.08 | E31: =+D31*(1+Assumptions!$C$19) -> 98113.8816 | F31: =+E31*(1+Assumptions!$C$19) -> 100076.1592 | G31: =+F31*(1+Assumptions!$C$19) -> 102077.6824 | H31: =+G31*(1+Assumptions!$C$19) -> 104119.2361
B32: =+'Annualized Revenue Operating'!B32 -> Other Expenses-
B33: =+'Annualized Revenue Operating'!B33 -> Landscaping/Snow Removal | C33: =+'Annualized Revenue Operating'!D33 -> 8000 | D33: =+C33*(1+Assumptions!$C$19) -> 8160 | E33: =+D33*(1+Assumptions!$C$19) -> 8323.2 | F33: =+E33*(1+Assumptions!$C$19) -> 8489.664 | G33: =+F33*(1+Assumptions!$C$19) -> 8659.45728 | H33: =+G33*(1+Assumptions!$C$19) -> 8832.646426
B34: =+'Annualized Revenue Operating'!B34 -> Software | C34: =+'Annualized Revenue Operating'!D34 -> 2450 | D34: =+C34*(1+Assumptions!$C$19) -> 2499 | E34: =+D34*(1+Assumptions!$C$19) -> 2548.98 | F34: =+E34*(1+Assumptions!$C$19) -> 2599.9596 | G34: =+F34*(1+Assumptions!$C$19) -> 2651.958792 | H34: =+G34*(1+Assumptions!$C$19) -> 2704.997968
B35: =+'Annualized Revenue Operating'!B35 -> Trash Removal | C35: =+'Annualized Revenue Operating'!D35 -> 2400 | D35: =+C35*(1+Assumptions!$C$19) -> 2448 | E35: =+D35*(1+Assumptions!$C$19) -> 2496.96 | F35: =+E35*(1+Assumptions!$C$19) -> 2546.8992 | G35: =+F35*(1+Assumptions!$C$19) -> 2597.837184 | H35: =+G35*(1+Assumptions!$C$19) -> 2649.793928
B36: =+'Annualized Revenue Operating'!B36 -> Outside Services - Fire, Pest, Security, etc. | C36: =+'Annualized Revenue Operating'!D36 -> 5000 | D36: =+C36*(1+Assumptions!$C$19) -> 5100 | E36: =+D36*(1+Assumptions!$C$19) -> 5202 | F36: =+E36*(1+Assumptions!$C$19) -> 5306.04 | G36: =+F36*(1+Assumptions!$C$19) -> 5412.1608 | H36: =+G36*(1+Assumptions!$C$19) -> 5520.404016
B41: =+'Annualized Revenue Operating'!B42 -> Total Operating Expenses | C41: =SUM(C19:C40) -> 308368.8777 | D41: 318645.9999 | E41: 328006.7264 | F41: 335337.0557 | G41: 342843.4835 | H41: 350516.0004
B42: Expense Ratio | C42: =C41/C15 -> 0.5041078436 | D42: 0.5123225335 | E42: 0.5097765289 | F42: 0.500938283 | G42: 0.4922883087 | H42: 0.4839473664 | J42: =(D41-C41)/C41 -> 0.03332736521 | K42: =(E41-D41)/D41 -> 0.02937656985 | L42: =(F41-E41)/E41 -> 0.02234810685 | M42: =(G41-F41)/F41 -> 0.0223847251 | N42: =(H41-G41)/G41 -> 0.02237906573
B43: =+'Annualized Revenue Operating'!B44 -> Capital Reserves | C43: =+'Annualized Revenue Operating'!C44 -> 0 | D43: =+Assumptions!C6*Assumptions!C21 -> 2169.3 | E43: =+D43*(1+Assumptions!$C$19) -> 2212.686 | F43: =+E43*(1+Assumptions!$C$19) -> 2256.93972 | G43: =+F43*(1+Assumptions!$C$19) -> 2302.078514 | H43: =+G43*(1+Assumptions!$C$19) -> 2348.120085
B44: =+'Annualized Revenue Operating'!B45 -> Net Operating Cash Flow | C44: =+C15-C41-C43 -> 303343.2423 | D44: 301148.3637 | E44: 313212.9698 | F44: 331823.9092 | G44: 351282.6844 | H44: 371421.2558
J45: =(D44-C44)/C44 -> -0.007235627139 | K45: =(E44-D44)/D44 -> 0.04006200108 | L45: =(F44-E44)/E44 -> 0.05941944042 | M45: =(G44-F44)/F44 -> 0.05864187192 | N45: =(H44-G44)/G44 -> 0.05732867668
B47: Unleveraged Financial Summary | D47: Year 1 | E47: Year 2 | F47: Year 3 | G47: Year 4 | H47: Year 5
B49: Net Operating Cash Flow | D49: =+D44 -> 301148.3637 | E49: =+E44 -> 313212.9698 | F49: =+F44 -> 331823.9092 | G49: =+G44 -> 351282.6844 | H49: =+H44 -> 371421.2558
B50: Acquisition | C50: =-Assumptions!F24 -> -4853491.877
B51: Residual Value Year 5 | H51: =+H49/Assumptions!C25 -> 6190354.263
B53: Total Cash Flow Before Taxes | C53: =SUM(C49:C52) -> -4853491.877 | D53: =SUM(D47:D52) -> 301148.3637 | E53: =SUM(E47:E52) -> 313212.9698 | F53: =SUM(F47:F52) -> 331823.9092 | G53: =SUM(G47:G52) -> 351282.6844 | H53: =SUM(H47:H52) -> 6561775.519
B55: Return on Investment | D55: =+D53/-$C53 -> 0.0620477733 | E55: =+E53/-$C53 -> 0.06453353126 | F55: =+F53/-$C53 -> 0.06836807758 | G55: =+G53/-$C53 -> 0.07237730963 | H55: =(+H53+C53)/-$C53 -> 0.3519700219
B57: Unleveraged IRR | F57: Unleveraged IRR | H57: =+IRR(C53:H53) -> 0.1120452651
B59: Leveraged Financial Summary | D59: Year 1 | E59: Year 2 | F59: Year 3 | G59: Year 4 | H59: Year 5
B61: Net Operating Cash Flow | D61: =+D49 -> 301148.3637 | E61: =+E49 -> 313212.9698 | F61: =+F49 -> 331823.9092 | G61: =+G49 -> 351282.6844 | H61: =+H49 -> 371421.2558
B62: Acquisition | C62: =-Assumptions!F24 -> -4853491.877
B63: Loan Principal | C63: =+Assumptions!F26 -> 2912095.126
B64: Loan Origination Fees and Costs | C64: =-Assumptions!F27 -> -29120.95126
B65: Debt Service (Principal and Interest) | D65: =-IF(Assumptions!I30<1.9,Assumptions!E35*1,IF(Assumptions!I30>1.9,Assumptions!C35*1)) -> -182005.9454 | E65: =-Assumptions!C35 -> -229327.9812 | F65: =E65 -> -229327.9812 | G65: =F65 -> -229327.9812 | H65: =G65 -> -229327.9812
B66: Residual Value Year 5 | H66: =+H61/Assumptions!C25 -> 6190354.263
B67: Residual Remaining Loan Value | H67: =-Assumptions!C37 -> -2678313.553
B69: Total Cash Flow Before Taxes | C69: =SUM(C59:C68) -> -1970517.702 | D69: 119142.4183 | E69: 83884.98858 | F69: 102495.928 | G69: 121954.7032 | H69: 3654133.985
B71: Return on Investment | D71: =+D69/-$C69 -> 0.06046249582 | E71: =+E69/-$C69 -> 0.04257002537 | F71: =+F69/-$C69 -> 0.05201472073 | G71: =+G69/-$C69 -> 0.06188967652 | H71: =(+H69+C69)/-$C69 -> 0.8544030237
B73: Leveraged IRR | F73: Leveraged IRR | H73: =+IRR(C69:H69) -> 0.1684942331
B75: DSCR | D75: =-D44/D65 -> 1.654607288 | E75: =-E44/E65 -> 1.365786103 | F75: =-F44/F65 -> 1.446940349 | G75: =-G44/G65 -> 1.53179164 | H75: =-H44/H65 -> 1.619607227
B76: Debt Yield | D76: =D44/$C$63 -> 0.1034129555 | E76: =E44/$C$63 -> 0.1075558854 | F76: 0.113946796 | G76: 0.1206288494 | H76: 0.1275443417

Sheet Annualized Revenue Operating
B1: INSTRUCTIONS: FILL IN Items highlighted in YELLOW
B3: ANNUALIZED REVENUE AND OPERATING EXPENSES
B5: Description | C5: Jan - Sept 2025 T-9 Annualized | D5: Jan - Sept 2025 T-9 Annualized
B6: Revenue
B7: Potential Gross Rental Income | C7: =Assumptions!C17+Assumptions!C18 -> 395316 | D7: =C7 -> 395316
B8: Vacancy, Discounts & Credit Loss | C8: =-(C7-C9) -> -30556 | D8: =-(D7-D9) -> -30556
B9: Gross Rental Income | C9: =273570/9*12 -> 364760 | D9: =C9 -> 364760
B10: Late/Admin/Other Fee Income | C10: =(1335+1340+100)/6*12 -> 5550 | D10: 5550
B11: Retail Product Sales (locks, boxes, etc.) | C11: =17/6*12 -> 34 | D11: 34
B12: Tenant Insurance | C12: 3738 | D12: 3738
B13: Commercial Income | C13: =SUM('Office Rent'!E65*12) -> 222909.12 | D13: 222909.12
B14: CAM Reimbursement | C14: 14721 | D14: 14721
B15: Effective Gross Revenue | C15: =SUM(C9:C14) -> 611712.12 | D15: =SUM(D9:D14) -> 611712.12
N16: =N20/N21 -> 0.8628007584
C17: Jan - Dec 2024 Actuals | D17: Jan - Sept 2025 T-9 Annualized
B18: Operating Expenses | F18: Expenses Excluded: | L18: Additional Inputs
B19: Marketing & Advertising | C19: =14634 -> 14634 | D19: 19393 | F19: Accounting | J19: 172 | L19: Credit Card
B20: Retail Product Costs | C20: 0 | D20: =D11*0.5 -> 17 | F20: Professional Services | J20: 9870 | L20: Revenue from Credit Card | N20: =158355 -> 158355
B21: Bank & Credit Card Charges | C21: =5779 -> 5779 | D21: =D9*N16*N22 -> 6294.304093 | F21: Travel | J21: 274 | L21: Gross Revenue | N21: =183536 -> 183536
B22: Insurance | C22: 12385 | D22: 13457 | F22: Parking Rent | J22: 278400 | L22: Credit Card Fee | N22: 0.02
B23: Dues/Subscriptions & Licenses/Permits | C23: =6587 -> 6587 | D23: 750 | F23: Parking Expenses | J23: 55122
B24: Off-Site Management Fees | C24: =699 -> 699 | D24: =((D9+D10+D11+D12)*5%)+(D13*3%) -> 25391.3736 | L24: Insurance - If Not Present
B25: Office/Site Supplies | C25: 1420 | D25: 1420 | L25: Current Occupied Units | N25: =94 -> 94
B26: Postage & Handling | C26: 0 | D26: 500 | L26: Year 1 Occupied Units | N26: =$N$31*P26 -> 93.6 | P26: 0.9
B27: On-Site Management & Payroll | C27: =30472+4901+2150 -> 37523 | D27: 37523 | L27: Year 2 Occupied Units | N27: =$N$31*P27 -> 93.6 | P27: 0.9
B28: Repairs & Maintenance | C28: 0 | D28: =(Assumptions!C6+Assumptions!C8)*0.15 -> 5983.2 | L28: Year 3 Occupied Units | N28: 93.6 | P28: 0.9
B29: Real Estate Taxes | C29: 81314 | D29: 81314 | L29: Year 4 Occupied Units | N29: 93.6 | P29: 0.9
B30: Telephone & Internet | C30: =1049+3427 -> 4476 | D30: 4172 | L30: Year 5 Occupied Units | N30: 93.6 | P30: 0.9
B31: Utilities | C31: =94304 -> 94304 | D31: 94304 | F31: Total | J31: =SUM(J19:J29) -> 343838 | L31: Total Units | N31: 104
B32: Other Expenses- | L32: Percentage Paid to Owner | N32: 0.5
B33: Landscaping/Snow Removal | C33: 0 | D33: 8000 | J33: =J31+C42 -> 607747 | L33: Tenant Insurance Policy $ | N33: 13
B34: Software | C34: 0 | D34: 2450 | L34: Year 1 | N34: =33/N25 -> 0.3510638298
B35: Trash Removal | C35: 0 | D35: 2400 | L35: Year 2 | N35: 0.4
B36: Outside Services - Fire, Pest, Security, etc. | C36: =4788 -> 4788 | D36: 5000 | L36: Year 3 | N36: 0.45
L37: Year 4 & 5 | N37: 0.5
B42: Total Operating Expenses | C42: =SUM(C19:C40) -> 263909 | D42: =SUM(D19:D41) -> 308368.8777
B43: Expense Ratio | C43: =C42/C15 -> 0.431426796 | D43: =D42/D15 -> 0.5041078436
B44: Capital Reserves | C44: 0 | D44: 0
B45: Net Operating Cash Flow | C45: =C15-C42-C44 -> 347803.12 | D45: =D15-D42-D44 -> 303343.2423

Sheet Assumptions
B1: INSTRUCTIONS: FILL IN Items highlighted in YELLOW
B3: ASSUMPTIONS | H3: Achieved Rate Analysis | L3: Unit Type | M3: W | N3: L | O3: SF | P3: # | Q3: RSF | R3: $ | S3: M | T3: A
L4: ='Unit Mix'!A3 -> 0 | M4: ='Unit Mix'!B3 -> 0 | N4: ='Unit Mix'!C3 -> 0 | O4: ='Unit Mix'!D3 -> 0 | P4: ='Unit Mix'!E3 -> 0 | Q4: ='Unit Mix'!F3 -> 0 | R4: ='Unit Mix'!G3 -> 0 | S4: ='Unit Mix'!H3 -> 0 | T4: ='Unit Mix'!I3 -> 0
B5: Operating Assumptions | E5: Key Metrics | H5: Occupied SF | I5: =(C6+C7+C8)*F7 -> 37506.81897 | L5: ='Unit Mix'!A4 -> 0 | M5: ='Unit Mix'!B4 -> 0 | N5: ='Unit Mix'!C4 -> 0 | O5: ='Unit Mix'!D4 -> 0 | P5: ='Unit Mix'!E4 -> 0 | Q5: ='Unit Mix'!F4 -> 0 | R5: ='Unit Mix'!G4 -> 0 | S5: ='Unit Mix'!H4 -> 0 | T5: ='Unit Mix'!I4 -> 0
B6: Storage Square Footage | C6: 21693 | E6: Current Unit Occupancy | F6: ='Annualized Revenue Operating'!N25/'Annualized Revenue Operating'!N31 -> 0.9038461538 | H6: Achieved Rate Annual | I6: ='Annualized Revenue Operating'!C9/Assumptions!I5 -> 9.725164916 | L6: ='Unit Mix'!A5 -> 0 | M6: ='Unit Mix'!B5 -> 0 | N6: ='Unit Mix'!C5 -> 0 | O6: ='Unit Mix'!D5 -> 0 | P6: ='Unit Mix'!E5 -> 0 | Q6: ='Unit Mix'!F5 -> 0 | R6: ='Unit Mix'!G5 -> 0 | S6: ='Unit Mix'!H5 -> 0 | T6: ='Unit Mix'!I5 -> 0
B7: RV/Boat/Parking Square Footage | C7: 0 | E7: Current SF Occupancy | F7: =20398/21693 -> 0.9403033237 | H7: Achieved Rate Monthly | I7: =I6/12 -> 0.8104304097 | L7: ='Unit Mix'!A6 -> 0 | M7: ='Unit Mix'!B6 -> 0 | N7: ='Unit Mix'!C6 -> 0 | O7: ='Unit Mix'!D6 -> 0 | P7: ='Unit Mix'!E6 -> 0 | Q7: ='Unit Mix'!F6 -> 0 | R7: ='Unit Mix'!G6 -> 0 | S7: ='Unit Mix'!H6 -> 0 | T7: ='Unit Mix'!I6 -> 0
B8: Warehouse/Office Square Footage | C8: 18195 | E8: Current Economic Occupancy | F8: ='Annualized Revenue Operating'!D9/'Annualized Revenue Operating'!D7 -> 0.9227048741 | L8: ='Unit Mix'!A7 -> 0 | M8: ='Unit Mix'!B7 -> 0 | N8: ='Unit Mix'!C7 -> 0 | O8: ='Unit Mix'!D7 -> 0 | P8: ='Unit Mix'!E7 -> 0 | Q8: ='Unit Mix'!F7 -> 0 | R8: ='Unit Mix'!G7 -> 0 | S8: ='Unit Mix'!H7 -> 0 | T8: ='Unit Mix'!I7 -> 0
B9: Year 1-2 Annual Rate Increases | C9: 0.03 | L9: ='Unit Mix'!A8 -> 0 | M9: ='Unit Mix'!B8 -> 0 | N9: ='Unit Mix'!C8 -> 0 | O9: ='Unit Mix'!D8 -> 0 | P9: ='Unit Mix'!E8 -> 0 | Q9: ='Unit Mix'!F8 -> 0 | R9: ='Unit Mix'!G8 -> 0 | S9: ='Unit Mix'!H8 -> 0 | T9: ='Unit Mix'!I8 -> 0
B10: Year 3-5 Annual Rate Increases | C10: 0.04 | E10: Storage $/SF Rates | F10: =(C17/C6)/12 -> 1.51860047 | L10: ='Unit Mix'!A9 -> 0 | M10: ='Unit Mix'!B9 -> 0 | N10: ='Unit Mix'!C9 -> 0 | O10: ='Unit Mix'!D9 -> 0 | P10: ='Unit Mix'!E9 -> 0 | Q10: ='Unit Mix'!F9 -> 0 | R10: ='Unit Mix'!G9 -> 0 | S10: ='Unit Mix'!H9 -> 0 | T10: ='Unit Mix'!I9 -> 0
B11: Average Economic Occupancy Percentage | E11: Rv/Boat/Parking $/SF Rates | F11: =IFERROR((C18/C7)/12, "-") -> - | L11: ='Unit Mix'!A10 -> 0 | M11: ='Unit Mix'!B10 -> 0 | N11: ='Unit Mix'!C10 -> 0 | O11: ='Unit Mix'!D10 -> 0 | P11: ='Unit Mix'!E10 -> 0 | Q11: ='Unit Mix'!F10 -> 0 | R11: ='Unit Mix'!G10 -> 0 | S11: ='Unit Mix'!H10 -> 0 | T11: ='Unit Mix'!I10 -> 0
B12: -Year 1 | C12: 0.9 | L12: ='Unit Mix'!A11 -> 0 | M12: ='Unit Mix'!B11 -> 0 | N12: ='Unit Mix'!C11 -> 0 | O12: ='Unit Mix'!D11 -> 0 | P12: ='Unit Mix'!E11 -> 0 | Q12: ='Unit Mix'!F11 -> 0 | R12: ='Unit Mix'!G11 -> 0 | S12: ='Unit Mix'!H11 -> 0 | T12: ='Unit Mix'!I11 -> 0
B13: -Year 2 | C13: 0.9 | E13: Acquisition $/SF | F13: =F24/(C6+C8) -> 121.6779953 | L13: ='Unit Mix'!A12 -> 0 | M13: ='Unit Mix'!B12 -> 0 | N13: ='Unit Mix'!C12 -> 0 | O13: ='Unit Mix'!D12 -> 0 | P13: ='Unit Mix'!E12 -> 0 | Q13: ='Unit Mix'!F12 -> 0 | R13: ='Unit Mix'!G12 -> 0 | S13: ='Unit Mix'!H12 -> 0 | T13: ='Unit Mix'!I12 -> 0
B14: -Year 3 | C14: 0.9 | E14: Future Sale $/SF | F14: =F25/(C6+C8) -> 155.1933981 | L14: ='Unit Mix'!A13 -> 0 | M14: ='Unit Mix'!B13 -> 0 | N14: ='Unit Mix'!C13 -> 0 | O14: ='Unit Mix'!D13 -> 0 | P14: ='Unit Mix'!E13 -> 0 | Q14: ='Unit Mix'!F13 -> 0 | R14: ='Unit Mix'!G13 -> 0 | S14: ='Unit Mix'!H13 -> 0 | T14: ='Unit Mix'!I13 -> 0
B15: -Year 4 | C15: 0.9 | L15: ='Unit Mix'!A14 -> 0 | M15: ='Unit Mix'!B14 -> 0 | N15: ='Unit Mix'!C14 -> 0 | O15: ='Unit Mix'!D14 -> 0 | P15: ='Unit Mix'!E14 -> 0 | Q15: ='Unit Mix'!F14 -> 0 | R15: ='Unit Mix'!G14 -> 0 | S15: ='Unit Mix'!H14 -> 0 | T15: ='Unit Mix'!I14 -> 0
B16: -Year 5 | C16: 0.9 | E16: Average Storage Unit Size | F16: =21693/104 -> 208.5865385 | L16: ='Unit Mix'!A15 -> 0 | M16: ='Unit Mix'!B15 -> 0 | N16: ='Unit Mix'!C15 -> 0 | O16: ='Unit Mix'!D15 -> 0 | P16: ='Unit Mix'!E15 -> 0 | Q16: ='Unit Mix'!F15 -> 0 | R16: ='Unit Mix'!G15 -> 0 | S16: ='Unit Mix'!H15 -> 0 | T16: ='Unit Mix'!I15 -> 0
B17: Trailing Storage Potential Gross Rental Income | C17: =32943*12 -> 395316 | L17: ='Unit Mix'!A16 -> 0 | M17: ='Unit Mix'!B16 -> 0 | N17: ='Unit Mix'!C16 -> 0 | O17: ='Unit Mix'!D16 -> 0 | P17: ='Unit Mix'!E16 -> 0 | Q17: ='Unit Mix'!F16 -> 0 | R17: ='Unit Mix'!G16 -> 0 | S17: ='Unit Mix'!H16 -> 0 | T17: ='Unit Mix'!I16 -> 0
B18: Trailing Rv/Boat/Parking Potential Gross Rental Income | C18: 0 | L18: ='Unit Mix'!A17 -> 0 | M18: ='Unit Mix'!B17 -> 0 | N18: ='Unit Mix'!C17 -> 0 | O18: ='Unit Mix'!D17 -> 0 | P18: ='Unit Mix'!E17 -> 0 | Q18: ='Unit Mix'!F17 -> 0 | R18: ='Unit Mix'!G17 -> 0 | S18: ='Unit Mix'!H17 -> 0 | T18: ='Unit Mix'!I17 -> 0
B19: Operating Expense Inflationary Increases | C19: 0.02 | L19: ='Unit Mix'!A18 -> 0 | M19: ='Unit Mix'!B18 -> 0 | N19: ='Unit Mix'!C18 -> 0 | O19: ='Unit Mix'!D18 -> 0 | P19: ='Unit Mix'!E18 -> 0 | Q19: ='Unit Mix'!F18 -> 0 | R19: ='Unit Mix'!G18 -> 0 | S19: ='Unit Mix'!H18 -> 0 | T19: ='Unit Mix'!I18 -> 0
B20: Management Fees as Percentage Total Revenue | C20: 0.05 | L20: ='Unit Mix'!A19 -> 0 | M20: ='Unit Mix'!B19 -> 0 | N20: ='Unit Mix'!C19 -> 0 | O20: ='Unit Mix'!D19 -> 0 | P20: ='Unit Mix'!E19 -> 0 | Q20: ='Unit Mix'!F19 -> 0 | R20: ='Unit Mix'!G19 -> 0 | S20: ='Unit Mix'!H19 -> 0 | T20: ='Unit Mix'!I19 -> 0
B21: Capital Reserves Per Square Foot | C21: 0.1 | L21: ='Unit Mix'!A20 -> 0 | M21: ='Unit Mix'!B20 -> 0 | N21: ='Unit Mix'!C20 -> 0 | O21: ='Unit Mix'!D20 -> 0 | P21: ='Unit Mix'!E20 -> 0 | Q21: ='Unit Mix'!F20 -> 0 | R21: ='Unit Mix'!G20 -> 0 | S21: ='Unit Mix'!H20 -> 0 | T21: ='Unit Mix'!I20 -> 0
L22: ='Unit Mix'!A21 -> 0 | M22: ='Unit Mix'!B21 -> 0 | N22: ='Unit Mix'!C21 -> 0 | O22: ='Unit Mix'!D21 -> 0 | P22: ='Unit Mix'!E21 -> 0 | Q22: ='Unit Mix'!F21 -> 0 | R22: ='Unit Mix'!G21 -> 0 | S22: ='Unit Mix'!H21 -> 0 | T22: ='Unit Mix'!I21 -> 0
B23: Acquisition & Disposition Assumptions | E23: Key Metrics | L23: ='Unit Mix'!A22 -> 0 | M23: ='Unit Mix'!B22 -> 0 | N23: ='Unit Mix'!C22 -> 0 | O23: ='Unit Mix'!D22 -> 0 | P23: ='Unit Mix'!E22 -> 0 | Q23: ='Unit Mix'!F22 -> 0 | R23: ='Unit Mix'!G22 -> 0 | S23: ='Unit Mix'!H22 -> 0 | T23: ='Unit Mix'!I22 -> 0
B24: Acquisition Cap Rate | C24: 0.0625 | E24: Current Property Value | F24: ='Projected Cash Flows'!C44/Assumptions!C24 -> 4853491.877 | L24: ='Unit Mix'!A23 -> 0 | M24: ='Unit Mix'!B23 -> 0 | N24: ='Unit Mix'!C23 -> 0 | O24: ='Unit Mix'!D23 -> 0 | P24: ='Unit Mix'!E23 -> 0 | Q24: ='Unit Mix'!F23 -> 0 | R24: ='Unit Mix'!G23 -> 0 | S24: ='Unit Mix'!H23 -> 0 | T24: ='Unit Mix'!I23 -> 0
B25: Future Sale Cap Rate | C25: 0.06 | E25: Projected Future Property Value | F25: =+'Projected Cash Flows'!H44/Assumptions!C25 -> 6190354.263 | L25: ='Unit Mix'!A24 -> 0 | M25: ='Unit Mix'!B24 -> 0 | N25: ='Unit Mix'!C24 -> 0 | O25: ='Unit Mix'!D24 -> 0 | P25: ='Unit Mix'!E24 -> 0 | Q25: ='Unit Mix'!F24 -> 0 | R25: ='Unit Mix'!G24 -> 0 | S25: ='Unit Mix'!H24 -> 0 | T25: ='Unit Mix'!I24 -> 0
B26: Loan to Value | C26: 0.6 | E26: Loan Amount | F26: =+F24*C26 -> 2912095.126 | L26: ='Unit Mix'!A25 -> 0 | M26: ='Unit Mix'!B25 -> 0 | N26: ='Unit Mix'!C25 -> 0 | O26: ='Unit Mix'!D25 -> 0 | P26: ='Unit Mix'!E25 -> 0 | Q26: ='Unit Mix'!F25 -> 0 | R26: ='Unit Mix'!G25 -> 0 | S26: ='Unit Mix'!H25 -> 0 | T26: ='Unit Mix'!I25 -> 0
B27: Loan Origination Fees | C27: 0.01 | E27: Loan Origination | F27: =+F26*C27 -> 29120.95126 | L27: ='Unit Mix'!A26 -> 0 | M27: ='Unit Mix'!B26 -> 0 | N27: ='Unit Mix'!C26 -> 0 | O27: ='Unit Mix'!D26 -> 0 | P27: ='Unit Mix'!E26 -> 0 | Q27: ='Unit Mix'!F26 -> 0 | R27: ='Unit Mix'!G26 -> 0 | S27: ='Unit Mix'!H26 -> 0 | T27: ='Unit Mix'!I26 -> 0
L28: ='Unit Mix'!A27 -> 0 | M28: ='Unit Mix'!B27 -> 0 | N28: ='Unit Mix'!C27 -> 0 | O28: ='Unit Mix'!D27 -> 0 | P28: ='Unit Mix'!E27 -> 0 | Q28: ='Unit Mix'!F27 -> 0 | R28: ='Unit Mix'!G27 -> 0 | S28: ='Unit Mix'!H27 -> 0 | T28: ='Unit Mix'!I27 -> 0
B29: Financing Assumptions | L29: ='Unit Mix'!A28 -> 0 | M29: ='Unit Mix'!B28 -> 0 | N29: ='Unit Mix'!C28 -> 0 | O29: ='Unit Mix'!D28 -> 0 | P29: ='Unit Mix'!E28 -> 0 | Q29: ='Unit Mix'!F28 -> 0 | R29: ='Unit Mix'!G28 -> 0 | S29: ='Unit Mix'!H28 -> 0 | T29: ='Unit Mix'!I28 -> 0
B30: Interest Rate | C30: 0.0625 | D30: One Year I/O | H30: Inputs | I30: 1 | L30: ='Unit Mix'!A29 -> 0 | M30: ='Unit Mix'!B29 -> 0 | N30: ='Unit Mix'!C29 -> 0 | O30: ='Unit Mix'!D29 -> 0 | P30: ='Unit Mix'!E29 -> 0 | Q30: ='Unit Mix'!F29 -> 0 | R30: ='Unit Mix'!G29 -> 0 | S30: ='Unit Mix'!H29 -> 0 | T30: ='Unit Mix'!I29 -> 0
B31: Number Monthly Payments | C31: 300 | E31: 300 | H31: One Year I/0 = 1 | L31: ='Unit Mix'!A30 -> 0 | M31: ='Unit Mix'!B30 -> 0 | N31: ='Unit Mix'!C30 -> 0 | O31: ='Unit Mix'!D30 -> 0 | P31: ='Unit Mix'!E30 -> 0 | Q31: ='Unit Mix'!F30 -> 0 | R31: ='Unit Mix'!G30 -> 0 | S31: ='Unit Mix'!H30 -> 0 | T31: ='Unit Mix'!I30 -> 0
B32: Loan Amount | C32: =F26 -> 2912095.126 | E32: =F26 -> 2912095.126 | H32: Fully Am = 2
B33: Future Value After Last Payment Made | C33: 0 | E33: 0
B34: When Payments Due (Assumes 1st Month) | C34: 1 | E34: 1
B35: Annual Loan Payments (PMT) | C35: =-PMT(C30/12,C31,C32,C33,C34)*12 -> 229327.9812 | E35: =E32*C30 -> 182005.9454
B36: Number Payments Made | C36: =IF(I30>1.9,60,IF(I30<1.9,48)) -> 48 | E36: 60
B37: Remaining Unpaid Loan Balance (CUMPRINC) | C37: =+C32+CUMPRINC(C30/12,C31,C32,1,C36,C34) -> 2678313.553 | E37: =E32 -> 2912095.126

Sheet Unit Mix (hidden)
A2: Unit Type | B2: W | C2: L | D2: Unit SF | E2: # of Units | F2: Total RSF | G2: Rental Rate | H2: Monthly | I2: Annual
D3: =B3*C3 -> 0 | F3: =D3*E3 -> 0 | H3: =E3*G3 -> 0 | I3: =H3*12 -> 0
D4: =B4*C4 -> 0 | F4: =D4*E4 -> 0 | H4: =E4*G4 -> 0 | I4: =H4*12 -> 0
D5: 0 | F5: 0 | H5: 0 | I5: 0
D6: 0 | F6: 0 | H6: 0 | I6: 0
D7: 0 | F7: 0 | H7: 0 | I7: 0
D8: 0 | F8: 0 | H8: 0 | I8: 0
D9: 0 | F9: 0 | H9: 0 | I9: 0
D10: 0 | F10: 0 | H10: 0 | I10: 0
D11: 0 | F11: 0 | H11: 0 | I11: 0
D12: 0 | F12: 0 | H12: 0 | I12: 0
D13: 0 | F13: 0 | H13: 0 | I13: 0
D14: 0 | F14: 0 | H14: 0 | I14: 0
D15: 0 | F15: 0 | H15: 0 | I15: 0
D16: 0 | F16: 0 | H16: 0 | I16: 0
D17: 0 | F17: 0 | H17: 0 | I17: 0
D18: 0 | F18: 0 | H18: 0 | I18: 0
D19: 0 | F19: 0 | H19: 0 | I19: 0
D20: 0 | F20: 0 | H20: 0 | I20: 0
D21: 0 | F21: 0 | H21: 0 | I21: 0
D22: 0 | F22: 0 | H22: 0 | I22: 0
D23: 0 | F23: 0 | H23: 0 | I23: 0
D24: 0 | F24: 0 | H24: 0 | I24: 0
D25: 0 | F25: 0 | H25: 0 | I25: 0
D26: 0 | F26: 0 | H26: 0 | I26: 0
D27: 0 | F27: 0 | H27: 0 | I27: 0
D28: 0 | F28: 0 | H28: 0 | I28: 0
D29: 0 | F29: 0 | H29: 0 | I29: 0
C31: Storage Total
C32: Parking Total
C33: Office Total
C34: Grand Total

Sheet Rate Survey
A2: Diamond Self Storage Anchorage
A3: 814 W Northern Lights Blvd, Anchorage, AK 99503
A4: Unit Size | D4: Type | H4: Website Rate | I4: PSF | J4: On-Site Rate | K4: PSF
A5: Storio Self Storage | D5: 610 W Fireweed Ln | E5: Anchorage | F5: AK | G5: 0.2708
A6: 6.5 | B6: x | C6: 9 | D6: Indoor | J6: 195 | K6: 3.333333333
A7: 6.5 | B7: x | C7: 14 | D7: Indoor | J7: 275 | K7: 3.021978022
A8: 8.75 | B8: x | C8: 11.5 | D8: Indoor | J8: 285 | K8: 2.832298137
A10: Midtown Storage | D10: 3737 Arctic Blvd | E10: Anchorage | F10: AK | G10: 0.5765749732
A11: 10 | B11: x | C11: 10 | D11: Drive Up, Heated | J11: 168 | K11: 1.68
A12: 10 | B12: x | C12: 15 | D12: Drive Up, Heated | J12: 204 | K12: 1.36
A13: 10 | B13: x | C13: 20 | D13: Drive Up, Heated | J13: 245 | K13: 1.225
A14: 10 | B14: x | C14: 20 | D14: Drive Up, Heated | J14: 257 | K14: 1.285
D15: *2 prices for 10x20
A17: Best Storage | D17: 3703 Woodland Drive | E17: Anchorage | F17: AK | G17: 0.9447948577
A18: 5 | B18: x | C18: 5 | D18: Drive Up | H18: 75 | I18: 3 | J18: 79 | K18: 3.16
A19: 10 | B19: x | C19: 10 | D19: Drive Up | H19: 190 | I19: 1.9 | J19: 198 | K19: 1.98
A20: 10 | B20: x | C20: 20 | D20: Drive Up | H20: 275 | I20: 1.375 | J20: 286 | K20: 1.43
A21: 15 | B21: x | C21: 22 | D21: Drive Up | J21: 400 | K21: 1.212121212
A23: International Self Storage | D23: 130 West International Airport Road | E23: Anchorage | F23: AK | G23: 1.620170042
A24: 5 | B24: x | C24: 5 | D24: CC | H24: 97 | I24: 3.88 | J24: 100 | K24: 4
A25: 5 | B25: x | C25: 10 | D25: CC | H25: 122 | I25: 2.44 | J25: 125 | K25: 2.5
A26: 10 | B26: x | C26: 10 | D26: Drive Up | H26: 180 | I26: 1.8 | J26: 190 | K26: 1.9
A27: 10 | B27: x | C27: 10 | D27: CC | H27: 219 | I27: 2.19 | J27: 225 | K27: 2.25
A28: 10 | B28: x | C28: 15 | D28: CC | J28: 295 | K28: 1.966666667
A29: 10 | B29: x | C29: 20 | D29: Drive Up | H29: 275 | I29: 1.375 | J29: 325 | K29: 1.625
A30: 10 | B30: x | C30: 20 | D30: CC | H30: 340 | I30: 1.7 | J30: 350 | K30: 1.75
A31: 10 | B31: x | C31: 30 | D31: Drive Up | H31: 325 | I31: 1.083333333 | J31: 400 | K31: 1.333333333
A32: 9 | B32: x | C32: 20 | D32: Parking | H32: 99 | I32: 0.55 | J32: 145 | K32: 0.8055555556
A34: U - Haul Moving & Storage | D34: 4751 Old Seward Hwy | E34: Anchorage | F34: AK | G34: 1.623968738
A35: 10 | B35: x | C35: 10 | D35: Split Level: 1st Floor, Heated | J35: 219.95 | K35: 2.1995
A36: 10 | B36: x | C36: 15 | D36: Split Level: 1st Floor, Heated | J36: 269.95 | K36: 1.799666667
A38: Northland Maxi - Vaults | D38: 1330 East 2nd Avenue | E38: Anchorage | F38: AK | G38: 2.257132531
A39: 6 | B39: x | C39: 8 | D39: Heated | J39: 108 | K39: 2.25
A40: 6 | B40: x | C40: 12 | D40: Heated | J40: 152 | K40: 2.111111111
A41: 10 | B41: x | C41: 12 | D41: Heated | J41: 230 | K41: 1.916666667
A42: 12 | B42: x | C42: 14 | D42: Heated | J42: 263 | K42: 1.56547619
A44: Publix Self Storage | D44: 1100 East Dowling Road | E44: Anchorage | F44: AK | G44: 2.338412778
A45: 5 | B45: x | C45: 5 | D45: Drive Up | J45: 119 | K45: 4.76
A46: 5 | B46: x | C46: 10 | D46: Elevator | J46: 149 | K46: 2.98
A47: 5 | B47: x | C47: 10 | D47: Drive Up | J47: 159 | K47: 3.18
A48: 10 | B48: x | C48: 10 | D48: Elevator | J48: 239 | K48: 2.39
A49: 10 | B49: x | C49: 10 | D49: Drive Up | J49: 239 | K49: 2.39
A50: 10 | B50: x | C50: 14 | D50: Drive Up | J50: 279 | K50: 1.992857143
A51: 10 | B51: x | C51: 20 | D51: Elevator | J51: 369 | K51: 1.845
A52: 10 | B52: x | C52: 20 | D52: Drive Up | J52: 329 | K52: 1.645
A53: 10 | B53: x | C53: 30 | D53: Elevator | J53: 399 | K53: 1.33
B54: x
B55: x
B56: x
A58: 0 | D58: 0 | E58: 0 | F58: 0 | G58: 0
B59: x
B60: x
B61: x
B62: x
B63: x
B64: x
B65: x
B66: x
B67: x
B68: x
A70: 0 | D70: 0 | E70: 0 | F70: 0 | G70: 0
B71: x
B72: x
B73: x
B74: x
B75: x
B76: x
B77: x
B78: x
B79: x
B80: x
A82: 0 | D82: 0 | E82: 0 | F82: 0 | G82: 0
B83: x
B84: x
B85: x
B86: x
B87: x
B88: x
B89: x
B90: x
B91: x
B92: x
A94: Diamond Self Storage Anchorage | D94: 814 W Northern Lights Blvd, Anchorage, AK 99503
A95: 5 | B95: x | C95: 5 | D95: Heated | J95: 100 | K95: 4
A96: 5 | B96: x | C96: 10 | D96: Drive Up | J96: 150 | K96: 3
A97: 10 | B97: x | C97: 10 | D97: Heated | J97: 200 | K97: 2
A98: 10 | B98: x | C98: 10 | D98: Drive Up | J98: 225 | K98: 2.25
A99: 10 | B99: x | C99: 20 | D99: Drive Up | J99: 400 | K99: 2
D100: Parking | J100: 200
D101: Covered | J101: 250
D102: Covered with ppower | J102: 275

Sheet Office Rent
A1: Size | B1: Description | C1: Units | D1: Rent | E1: SqFt | F1: Beginning Occupied | G1: Vacant | H1: Ins | I1: Outs | J1: Ending Occupied | K1: Vacant | M1: Gross Income | N1: $/SqFt | O1: Actual Rent | P1: $/SqFt
F2: Begin | H2: Moved | J2: End | M2: Potential | O2: Projected
A3: 4X8 | B3: Interior Heated 1 Bonus | C3: 1 | D3: 97 | E3: 32 | F3: 1 | G3: 0 | H3: 1 | I3: 1 | J3: 1 | K3: 0 | L3: 100.00% | M3: 97 | N3: $3.03 | O3: 97 | P3: 3.03
A4: 6X8 | B4: Interior Heated | C4: 1 | D4: 120 | E4: 48 | F4: 1 | G4: 0 | H4: 0 | I4: 0 | J4: 1 | K4: 0 | L4: 100.00% | M4: 120 | N4: $2.40 | O4: 120 | P4: 2.5
A5: 5X10 | B5: Interior Heated | C5: 2 | D5: 120 | E5: 50 | F5: 2 | G5: 0 | H5: 0 | I5: 0 | J5: 2 | K5: 0 | L5: 100.00% | M5: 240 | N5: $3.00 | O5: 270 | P5: 2.85
A6: 8X7 | B6: Interior Bonus | C6: 1 | D6: 110 | E6: 56 | F6: 1 | G6: 0 | H6: 0 | I6: 0 | J6: 1 | K6: 0 | L6: 100.00% | M6: 110 | N6: $1.96 | O6: 110 | P6: 1.96
A7: 6X10 | B7: Interior Heated | C7: 1 | D7: 135 | E7: 60 | F7: 1 | G7: 0 | H7: 0 | I7: 0 | J7: 1 | K7: 0 | L7: 100.00% | M7: 135 | N7: $2.25 | O7: 150 | P7: 2.5
A8: 8X8 | B8: Interior Heated | C8: 3 | D8: 140 | E8: 64 | F8: 3 | G8: 0 | H8: 1 | I8: 2 | J8: 2 | K8: 1 | L8: 66.67% | M8: 420 | N8: $2.19 | O8: 435 | P8: 2.3
A9: 8X9 | B9: Interior Heated | C9: 4 | D9: 155 | E9: 72 | F9: 4 | G9: 0 | H9: 1 | I9: 2 | J9: 3 | K9: 1 | L9: 75.00% | M9: 620 | N9: $2.01 | O9: 600 | P9: 2.06
A10: 8X10 | B10: Interior Heated | C10: 5 | D10: 155 | E10: 80 | F10: 5 | G10: 0 | H10: 3 | I10: 5 | J10: 3 | K10: 2 | L10: 60.00% | M10: 775 | N10: $1.88 | O10: 770 | P10: 1.9
A11: 8X11 | B11: Interior Heated | C11: 2 | D11: 155 | E11: 88 | F11: 2 | G11: 0 | H11: 1 | I11: 1 | J11: 2 | K11: 0 | L11: 100.00% | M11: 310 | N11: $1.76 | O11: 300 | P11: 1.73
A12: 8X11 | B12: Interior Heated | C12: 12 | D12: 155 | E12: 88 | F12: 11 | G12: 1 | H12: 2 | I12: 1 | J12: 12 | K12: 0 | L12: 100.00% | M12: 1860 | N12: $1.76 | O12: 1755 | P12: 1.8
A13: 8X12 | B13: Interior Heated | C13: 1 | D13: 165 | E13: 96 | F13: 1 | G13: 0 | H13: 1 | I13: 1 | J13: 1 | K13: 0 | L13: 100.00% | M13: 165 | N13: $1.72 | O13: 165 | P13: 1.72
A14: 10X10 | B14: Interior Heated | C14: 18 | D14: 190 | E14: 100 | F14: 15 | G14: 3 | H14: 11 | I14: 11 | J14: 16 | K14: 2 | L14: 88.89% | M14: 3420 | N14: $2.00 | O14: 3045 | P14: 2.03
A15: 8X14 | B15: Interior Heated | C15: 1 | D15: 205 | E15: 112 | F15: 1 | G15: 0 | H15: 0 | I15: 0 | J15: 1 | K15: 0 | L15: 100.00% | M15: 205 | N15: $1.83 | O15: 220 | P15: 1.96
A16: 8X15 | B16: Interior Heated | C16: 2 | D16: 225 | E16: 120 | F16: 2 | G16: 0 | H16: 0 | I16: 0 | J16: 2 | K16: 0 | L16: 100.00% | M16: 450 | N16: $1.88 | O16: 475 | P16: 1.98
A17: 11X11 | B17: Interior Heated | C17: 1 | D17: 225 | E17: 121 | F17: 1 | G17: 0 | H17: 0 | I17: 0 | J17: 1 | K17: 0 | L17: 100.00% | M17: 225 | N17: $1.86 | O17: 240 | P17: 1.98
A18: 9X14 | B18: Interior Heated | C18: 2 | D18: 230 | E18: 126 | F18: 1 | G18: 1 | H18: 2 | I18: 1 | J18: 2 | K18: 0 | L18: 100.00% | M18: 460 | N18: $1.83 | O18: 230 | P18: 1.83
A19: 10X15 | B19: Interior Heated | C19: 10 | D19: 235 | E19: 150 | F19: 10 | G19: 0 | H19: 2 | I19: 4 | J19: 9 | K19: 1 | L19: 90.00% | M19: 2350 | N19: $1.57 | O19: 2375 | P19: 1.59
A20: 8X20 | B20: Interior Heated 2 | C20: 1 | D20: 240 | E20: 160 | F20: 1 | G20: 0 | H20: 0 | I20: 0 | J20: 1 | K20: 0 | L20: 100.00% | M20: 240 | N20: $1.50 | O20: 240 | P20: 1.5
A21: 8X20 | B21: Interior Heated | C21: 3 | D21: 250 | E21: 160 | F21: 3 | G21: 0 | H21: 0 | I21: 0 | J21: 3 | K21: 0 | L21: 100.00% | M21: 750 | N21: $1.56 | O21: 760 | P21: 1.58
A22: 9X18 | B22: Interior Heated | C22: 2 | D22: 250 | E22: 162 | F22: 2 | G22: 0 | H22: 1 | I22: 1 | J22: 1 | K22: 1 | L22: 50.00% | M22: 500 | N22: $1.57 | O22: 510 | P22: 1.57
A23: 11X16 | B23: Interior Heated 2 | C23: 2 | D23: 250 | E23: 176 | F23: 1 | G23: 1 | H23: 2 | I23: 0 | J23: 2 | K23: 0 | L23: 100.00% | M23: 500 | N23: $1.42 | O23: 250 | P23: 1.42
A24: 11X16 | B24: Interior Heated | C24: 1 | D24: 260 | E24: 176 | F24: 1 | G24: 0 | H24: 0 | I24: 0 | J24: 1 | K24: 0 | L24: 100.00% | M24: 260 | N24: $1.48 | O24: 275 | P24: 1.56
A25: 10X18 | B25: Interior Heated | C25: 1 | D25: 265 | E25: 180 | F25: 1 | G25: 0 | H25: 1 | I25: 1 | J25: 1 | K25: 0 | L25: 100.00% | M25: 265 | N25: $1.47 | O25: 285 | P25: 1.47
A26: 11X17 | B26: Interior Heated | C26: 1 | D26: 270 | E26: 187 | F26: 1 | G26: 0 | H26: 0 | I26: 1 | J26: 0 | K26: 1 | L26: 0.00% | M26: 270 | N26: $1.44 | O26: 285 | P26: 0
A27: 10X20 | B27: Office Space Heated | C27: 1 | D27: 300 | E27: 200 | F27: 1 | G27: 0 | H27: 0 | I27: 0 | J27: 1 | K27: 0 | L27: 100.00% | M27: 300 | N27: $1.50 | O27: 300 | P27: 1.5
A28: 10X20 | B28: Interior Heated | C28: 2 | D28: 300 | E28: 200 | F28: 2 | G28: 0 | H28: 0 | I28: 0 | J28: 2 | K28: 0 | L28: 100.00% | M28: 600 | N28: $1.50 | O28: 615 | P28: 1.54
A29: 11X20 | B29: Interior Heated | C29: 1 | D29: 285 | E29: 220 | F29: 1 | G29: 0 | H29: 0 | I29: 0 | J29: 1 | K29: 0 | L29: 100.00% | M29: 285 | N29: $1.39 | O29: 300 | P29: 1.39
A30: 10X25 | B30: Interior Heated | C30: 1 | D30: 315 | E30: 250 | F30: 1 | G30: 0 | H30: 0 | I30: 0 | J30: 1 | K30: 0 | L30: 100.00% | M30: 315 | N30: $1.28 | O30: 320 | P30: 1.28
A31: 12X21 | B31: Interior Heated 2 | C31: 1 | D31: 275 | E31: 252 | F31: 1 | G31: 0 | H31: 0 | I31: 0 | J31: 1 | K31: 0 | L31: 100.00% | M31: 275 | N31: $1.09 | O31: 275 | P31: 1.09
A32: 14X20 | B32: Interior Heated | C32: 1 | D32: 330 | E32: 280 | F32: 1 | G32: 0 | H32: 0 | I32: 0 | J32: 1 | K32: 0 | L32: 100.00% | M32: 330 | N32: $1.18 | O32: 345 | P32: 1.23
A33: 17X17 | B33: Interior Heated | C33: 1 | D33: 450 | E33: 289 | F33: 1 | G33: 0 | H33: 1 | I33: 1 | J33: 1 | K33: 0 | L33: 100.00% | M33: 450 | N33: $1.56 | O33: 450 | P33: 1.56
A34: 15X20 | B34: Interior Heated | C34: 2 | D34: 460 | E34: 300 | F34: 2 | G34: 0 | H34: 1 | I34: 2 | J34: 1 | K34: 1 | L34: 50.00% | M34: 920 | N34: $1.53 | O34: 920 | P34: 1.53
A35: 17X20 | B35: Interior Heated | C35: 1 | D35: 500 | E35: 340 | F35: 1 | G35: 0 | H35: 0 | I35: 0 | J35: 1 | K35: 0 | L35: 100.00% | M35: 500 | N35: $1.47 | O35: 485 | P35: 1.46
A36: 12X29 | B36: Drive Up No Climate | C36: 5 | D36: 700 | E36: 348 | F36: 4 | G36: 0 | H36: 3 | I36: 2 | J36: 5 | K36: 0 | L36: 100.00% | M36: 3500 | N36: $2.01 | O36: 2790 | P36: 2.01
A37: 26X14 | B37: Interior Heated | C37: 1 | D37: 600 | E37: 364 | F37: 1 | G37: 0 | H37: 0 | I37: 0 | J37: 1 | K37: 0 | L37: 100.00% | M37: 600 | N37: $1.95 | O37: 625 | P37: 1.74
A38: 20X20 | B38: Interior Heated | C38: 1 | D38: 725 | E38: 400 | F38: 1 | G38: 0 | H38: 1 | I38: 1 | J38: 1 | K38: 0 | L38: 100.00% | M38: 725 | N38: $1.81 | O38: 650 | P38: 1.81
A39: 10X47 | B39: Interior Heated | C39: 1 | D39: 625 | E39: 470 | F39: 0 | G39: 1 | H39: 1 | I39: 0 | J39: 1 | K39: 0 | L39: 100.00% | M39: 625 | N39: $1.33 | O39: 0 | P39: 1.33
A40: 22X29 | B40: Interior Heated | C40: 1 | D40: 870 | E40: 638 | F40: 1 | G40: 0 | H40: 0 | I40: 0 | J40: 1 | K40: 0 | L40: 100.00% | M40: 870 | N40: $1.36 | O40: 940 | P40: 1.47
A41: 18X36 | B41: Interior Heated 2 | C41: 1 | D41: 486 | E41: 648 | F41: 1 | G41: 0 | H41: 0 | I41: 0 | J41: 1 | K41: 0 | L41: 100.00% | M41: 486 | N41: $0.75 | O41: 486 | P41: 0.75
A42: 22X50 | B42: Drive Up Heated | C42: 1 | D42: 980 | E42: 1100 | F42: 1 | G42: 0 | H42: 0 | I42: 0 | J42: 1 | K42: 0 | L42: 100.00% | M42: 980 | N42: $0.89 | O42: 1025 | P42: 0.93
A43: 16X72 | B43: Drive Up Heated | C43: 2 | D43: 1455 | E43: 1152 | F43: 2 | G43: 0 | H43: 0 | I43: 0 | J43: 2 | K43: 0 | L43: 100.00% | M43: 2910 | N43: $1.26 | O43: 2950 | P43: 1.28
A44: 20X63 | B44: Drive Up Heated | C44: 1 | D44: 1260 | E44: 1260 | F44: 1 | G44: 0 | H44: 0 | I44: 0 | J44: 1 | K44: 0 | L44: 100.00% | M44: 1260 | N44: $1.00 | O44: 1260 | P44: 1
A45: 25X62 | B45: Drive Up Heated | C45: 1 | D45: 1100 | E45: 1550 | F45: 1 | G45: 0 | H45: 0 | I45: 0 | J45: 1 | K45: 0 | L45: 100.00% | M45: 1100 | N45: $1.26 | O45: 1300 | P45: 0.9
A46: Rented Summary | B46: Spaces Rented | C46: (2)
A47: Rented Summary | B47: Square Feet Rented | C47: 301 | J47: =SUM(J3:J45) -> 94 | M47: =SUM(M3:M45) -> 31778 | O47: =SUM(O3:O45) -> 29998
D48: =SUM(C3:C45) -> 104 | O48: =SUM(O47*12) -> 359976
A51: Diamond Parking Tenant Transactions Summary
A52: Exported On: 09/08/2025 02:52 AM
A54: Tenants: Active
A55: Portfolios: Diamond Parking Services
A56: Month of: Sep 2025
A58: Unit | B58: Name | C58: Status | D58: Beginning Balance | E58: Rent Charges | F58: Late Charges | G58: Other Charges | H58: Cash Payments | I58: NSFs | J58: Concessions | K58: Other Credits | L58: Ending Balance
A59: 01-5003 - 814 W Northern Lights Blvd Anchorage, AK 99503
A60: East Warehouse | B60: Alaska Sausage Co. | C60: Current | D60: 0 | E60: 3900 | F60: 0 | G60: 600 | H60: 4500 | I60: 0 | J60: 0 | K60: 0 | L60: 0
A61: Mat Maid Annex | B61: Oriental Therapy | C61: Current | D61: 0 | E61: 2125.76 | F61: 0 | G61: 626.78 | H61: 2752.54 | I61: 0 | J61: 0 | K61: 0 | L61: 0
A62: North East Office Suite | B62: Project Alaska, Inc | C62: Current | D62: 0 | E62: 2500 | F62: 0 | G62: 0 | H62: 2500 | I62: 0 | J62: 0 | K62: 0 | L62: 0
A63: North Warehouse | B63: Anchorage School District Purchasing/Warehouse | C63: Current | D63: 0 | E63: 10050 | F63: 0 | G63: 0 | H63: 10050 | I63: 0 | J63: 0 | K63: 0 | L63: 0
D65: Monthly Office Rent | E65: =SUM(E60:E63) -> 18575.76 | F65: Monthly CAM Charges | G65: =SUM(G60:G63) -> 1226.78

Sheet Rent Roll
A1: Customer Name | B1: Address | C1: Phone Number | D1: Room Number | E1: Contract Type | F1: Rent | G1: Move-In Date | H1: Paid Thru Date | I1: Days Occupied | J1: Balance Due | K1: Insurance
A2: Adams, Ronald | B2: 10406 Ridge Park Dr | C2: (907) 317-3020 | D2: 3C43 | E2: Individual | F2: 150 | G2: 5/7/2025 | H2: 9/30/2025 | I2: 126 | J2: $0.00 | K2: 0
B3: Anchorage, Alaska 99507
A4: Adventures, Infinite | B4: 854 E. 36th Ave | C4: (520) 468-9774 | D4: 3D11 | E4: Business | F4: 155 | G4: 6/5/2024 | H4: 9/30/2025 | I4: 462 | J4: $0.00 | K4: 0
B5: Anchorage, Alaska 99503
A6: Amerson, Taylor D. | B6: 9838 Poseidon Dr | C6: (310) 740-6837 | D6: 3C42 | E6: Individual | F6: 235 | G6: 4/13/2023 | H6: 8/31/2025 | I6: 881 | J6: $262.95 | K6: 7.95
B7: Anchorage, Alaska 99515
A8: Arnold, Sandra | B8: 727 Fairmount Dr | C8: (907) 223-1005 | D8: 3C47 | E8: Individual | F8: 250 | G8: 9/8/2023 | H8: 9/30/2025 | I8: 733 | J8: $0.00 | K8: 0
B9: North Port, Florida 34287
A10: Ballard, Jed | B10: 510 L Street Unit 805 | C10: (907) 306-3975 | D10: 3C25 | E10: Individual | F10: 150 | G10: 7/25/2025 | H10: 9/30/2025 | I10: 47 | J10: $0.00 | K10: 0
B11: Anchorage, Alaska 99501
A12: Barber, Adrian | B12: 1425 W 27th Ave Apt #6 | C12: (907) 717-0592 | D12: 3C19 | E12: Individual | F12: 120 | G12: 1/10/2023 | H12: 9/30/2025 | I12: 974 | J12: $0.00 | K12: 7.95
B13: Anchorage, Alaska 99503
A14: Benroth, Thomas | B14: 4421 Mars Drive | C14: (907) 242-7821 | D14: 3W08 | E14: Individual | F14: 450 | G14: 4/28/2025 | H14: 5/31/2026 | I14: 135 | J14: $0.00 | K14: 0
B15: Anchorage, Alaska 99507
A16: BERTINI, SANDRA AND BRUCE | B16: 8731 MOLANARY DR 7 | C16: (907) 764-8185 | D16: 3N09 | E16: Individual | F16: 230 | G16: 4/1/2015 | H16: 9/30/2025 | I16: 3815 | J16: $0.00 | K16: 0
B17: ANCHORAGE, Alaska 99502
A18: Bettis - Signature Flights, Marty | B18: 6350 Kulis Dr | C18: (907) 538-2405 | D18: 3C02 | E18: Individual | F18: 635 | G18: 1/17/2020 | H18: 9/30/2025 | I18: 2063 | J18: $0.00 | K18: 0
B19: Anchorage, Alaska 99502
A20: Billman, Jared | B20: 1201 Denali St #214 | C20: (417) 258-0118 | D20: 3C08 | E20: Individual | F20: 235 | G20: 3/19/2024 | H20: 9/30/2025 | I20: 540 | J20: $0.00 | K20: 0
B21: Anchorage, Alaska 99501
A22: Blume, Elizabeth | B22: 12800 Silver Spruce Dr | C22: (907) 342-9727 | D22: 3W06 | E22: Individual | F22: 315 | G22: 7/2/2021 | H22: 9/30/2025 | I22: 1531 | J22: $0.00 | K22: 0
B23: Anchorage, Alaska 99516
A24: Cadle, Victor | B24: 1553 A Street | C24: (309) 824-6793 | D24: 3C29 | E24: Individual | F24: 200 | G24: 10/29/2024 | H24: 9/30/2025 | I24: 316 | J24: $0.00 | K24: 0
B25: Anchorge, Alaska 99501
A26: Care, Shine Bright | B26: 400 W. Northern Lights Blvd | C26: (907) 346-6200 | D26: 3C21 | E26: Business | F26: 150 | G26: 5/12/2022 | H26: 9/30/2025 | I26: 1217 | J26: $0.00 | K26: 0
B27: Anchorage, Alaska 99503
A28: Chong, James | B28: 610 Vista Glen Court 26 | C28: (907) 727-2424 | D28: 3w02 | E28: Individual | F28: 625 | G28: 8/28/2024 | H28: 9/30/2025 | I28: 378 | J28: $0.00 | K28: 0
B29: ANCHORAGE, Alaska 99501
A30: COMM. ACTION ON TOXICS, ALASKA | B30: 1225 E. International Airport Rd 220 | C30: (907) 222-7714 | D30: 3C13 | E30: Individual | F30: 250 | G30: 12/31/2012 | H30: 9/30/2025 | I30: 4636 | J30: $0.00 | K30: 0
B31: ANCHORAGE, Alaska 99518
A32: COMM. ACTION ON TOXICS, ALASKA | B32: 1225 E. International Airport Rd 220 | C32: (907) 222-7714 | D32: 3C07 | E32: Individual | F32: 250 | G32: 12/31/2012 | H32: 9/30/2025 | I32: 4636 | J32: $0.00 | K32: 0
B33: ANCHORAGE, Alaska 99518
A34: COMMERCIAL SERVICES, ENVIRON | B34: 1441 ROD GREGG | C34: (907) 884-3742 | D34: 3O07 | E34: Individual | F34: 300 | G34: 2/25/2013 | H34: 9/30/2025 | I34: 4580 | J34: $0.00 | K34: 0
B35: ANCHORAGE, Alaska 99514
A36: COMMERCIAL SERVICES, ENVIRON | B36: 1441 ROD GREGG | C36: (907) 884-3742 | D36: 3BS3 | E36: Individual | F36: 1450 | G36: 9/24/2013 | H36: 9/30/2025 | I36: 4369 | J36: $0.00 | K36: 0
B37: ANCHORAGE, Alaska 99514
A38: CORPORATION, TDX | B38: 3601 C Street STE 1000 | C38: (907) 278-2311 | D38: 3BE3 | E38: Individual | F38: 695 | G38: 4/11/2017 | H38: 9/30/2025 | I38: 3074 | J38: $0.00 | K38: 10.95
B39: ANCHORAGE, Alaska 99503
A40: Courville, Noah | B40: 2618 Cindylee Ln | C40: (907) 290-4415 | D40: 3O05 | E40: Individual | F40: 240 | G40: 6/2/2023 | H40: 8/31/2025 | I40: 831 | J40: $243.95 | K40: 7.95
B41: Anchorage, Alaska 99507
A42: Crandall, Brandon | B42: 235 E 2nd Ct Apt 109 | C42: (907) 654-9199 | D42: 3C30 | E42: Individual | F42: 200 | G42: 8/29/2025 | H42: 9/30/2025 | I42: 12 | J42: $0.00 | K42: 8.95
B43: Anchorage, Alaska 99501
A44: DAVIS, PHILLIP AND SANDRA | B44: 210 E 7Th Avenue | C44: (907) 677-5909 | D44: 3D02 | E44: Individual | F44: 170 | G44: 5/29/2013 | H44: 9/30/2025 | I44: 4487 | J44: $0.00 | K44: 0
B45: Anchorage, Alaska 99501
A46: DAVIS, PHILLIP AND SANDRA | B46: 210 E 7Th Avenue | C46: (907) 677-5909 | D46: 3W10 | E46: Individual | F46: 200 | G46: 12/31/2012 | H46: 9/30/2025 | I46: 4636 | J46: $0.00 | K46: 0
B47: Anchorage, Alaska 99501
A48: Davis-Lucero, Elayne | B48: 3705 Arctic Boulevard | C48: (907) 350-7844 | D48: 3BE1 | E48: Business | F48: 700 | G48: 9/29/2023 | H48: 9/30/2025 | I48: 712 | J48: $0.00 | K48: 0
B49: Anchroage, Alaska 99517
A50: DISTRICT 5010, ROTARY | B50: 200 W 34TH AVENUE | C50: (907) 243-5259 | D50: 3C17 | E50: Individual | F50: 140 | G50: 7/23/2014 | H50: 9/30/2025 | I50: 4067 | J50: $1,800.00 | K50: 0
B51: ANCHORAGE, Alaska 99503
A52: Dolphin, Joel | B52: 5933 Debarr Road | C52: (907) 764-9035 | D52: 3C14 | E52: Individual | F52: 225 | G52: 12/15/2023 | H52: 9/30/2025 | I52: 635 | J52: $0.00 | K52: 7.95
B53: Anchiorage, Alaska 99504
A54: Earp, Joni M | B54: 700 W. 18th Street | C54: (907) 433-9028 | D54: 3D16 | E54: Individual | F54: 145 | G54: 8/15/2025 | H54: 9/30/2025 | I54: 26 | J54: $0.00 | K54: 8.95
B55: Anchorage, Alaska 99503
A56: ENGINEERING, INC, ENTERPRISE | B56: 2525 Gambell St. Ste 200 Darlene Kuiper, Office Manager | C56: (907) 563-3835 | D56: 3BS1 | E56: Individual | F56: 1475 | G56: 12/31/2012 | H56: 9/30/2025 | I56: 4636 | J56: $0.00 | K56: 0
B57: Anchorage, Alaska 99503
A58: ENTERPRISES, M AND R | B58: PO Box 81713 ATTN: MICHAEL A RAINER | C58: (907) 632-2492 | D58: 3C37 | E58: Individual | F58: 275 | G58: 7/10/2020 | H58: 9/30/2025 | I58: 1888 | J58: $0.00 | K58: 0
B59: Fairbanks, Alaska 99708
A60: FERRELL, ROBERT | B60: 2813 N Star Street | C60: (907) 201-9346 | D60: 3W01 | E60: Individual | F60: 255 | G60: 8/20/2025 | H60: 9/30/2025 | I60: 21 | J60: $0.00 | K60: 0
B61: Anchorage, Alaska 99503
A62: Fischer, Kelly | B62: 1120 Huffman Rd 24-307 | C62: (907) 202-1754 | D62: 3O06 | E62: Individual | F62: 255 | G62: 7/8/2021 | H62: 9/30/2025 | I62: 1525 | J62: $0.00 | K62: 0
B63: Anchorage, Alaska 99515
A64: Foundation, Anchorage Park | B64: 3201 C St Ste 111 | C64: (907) 274-1003 | D64: 3D14 | E64: Business | F64: 155 | G64: 5/12/2022 | H64: 9/30/2025 | I64: 1217 | J64: $0.00 | K64: 0
B65: Anchorage, Alaska 99503
A66: Fulford, Nicholas | B66: 10400 Sidorof Lane | C66: (907) 444-8365 | D66: 3N08 | E66: Individual | F66: 230 | G66: 4/4/2025 | H66: 9/30/2025 | I66: 159 | J66: $0.00 | K66: 0
B67: Anchorage, Alaska 99507
A68: Gabrielson, Amanda | B68: 9945 William Jones CIR UNIT 1 1 | C68: (507) 273-0123 | D68: 3C28 | E68: Individual | F68: 200 | G68: 5/27/2024 | H68: 9/30/2025 | I68: 471 | J68: $0.00 | K68: 0
B69: Anchorage, Alaska 99515
A70: Garcia, Edward | B70: 130 E 45th Ave | C70: (907) 717-6761 | D70: 3BE5 | E70: Individual | F70: 700 | G70: 7/11/2024 | H70: 9/30/2025 | I70: 426 | J70: $0.00 | K70: 0
B71: Anchorage, Alaska 99503
A72: Garcia, Edward | B72: 130 E 45th Ave | C72: (907) 717-6761 | D72: 3C15 | E72: Individual | F72: 1260 | G72: 4/13/2023 | H72: 9/30/2025 | I72: 881 | J72: $0.00 | K72: 0
B73: Anchorage, Alaska 99503
A74: Ham, Jennifer | B74: 3131 Lark St #2 | C74: (907) 201-1608 | D74: 3W05 | E74: Individual | F74: 265 | G74: 10/29/2024 | H74: 9/30/2025 | I74: 316 | J74: $0.00 | K74: 20.95
B75: Anchorage, Alaska 99507
A76: Hatton, Renea | B76: 8411 Ragged Top | C76: (907) 227-1663 | D76: 3O03 | E76: Individual | F76: 250 | G76: 6/30/2025 | H76: 9/30/2025 | I76: 72 | J76: $0.00 | K76: 0
B77: Anchorage, Alaska 99504
A78: Hatton, Renea | B78: 8411 Ragged Top | C78: (907) 227-1663 | D78: 3C40 | E78: Individual | F78: 235 | G78: 7/1/2025 | H78: 9/30/2025 | I78: 71 | J78: $0.00 | K78: 0
B79: Anchorage, Alaska 99504
A80: Haynes, Lynn C | B80: 800 Ingra St General Delivery | C80: (907) 891-3274 | D80: 3O04 | E80: Individual | F80: 250 | G80: 5/1/2024 | H80: 9/30/2025 | I80: 497 | J80: $0.00 | K80: 7.95
B81: Anchorage, Alaska 99501
A82: Herngren, Luke Merrill | B82: 9624 Elmira Cir | C82: (916) 534-2665 | D82: 3C34 | E82: Individual | F82: 200 | G82: 2/25/2021 | H82: 9/30/2025 | I82: 1658 | J82: $0.00 | K82: 10.95
B83: Sacramento, California 95827
A84: Irick, Wende | B84: 702 Barrow | C84: (907) 227-4977 | D84: 3D21 | E84: Individual | F84: 165 | G84: 8/30/2021 | H84: 9/30/2025 | I84: 1472 | J84: $0.00 | K84: 0
B85: ANCHORAGE, Alaska 99501
A86: Jallow, Momodou | B86: 14225 SW Tualatin HWY | C86: (907) 205-0394 | D86: 3O02 | E86: Individual | F86: 275 | G86: 5/10/2023 | H86: 9/30/2025 | I86: 854 | J86: $0.00 | K86: 0
B87: BEAVERTON, Oregon 97005
A88: JAMES, DANA | B88: PO Box 651 | C88: (907) 242-3312 | D88: 3C44 | E88: Individual | F88: 235 | G88: 4/25/2015 | H88: 9/30/2025 | I88: 3791 | J88: $0.00 | K88: 0
B89: Cordova, Alaska 99574
A90: Jay Foster-Kitchen , Norman | B90: 161 E 1st Ave #8 | C90: (907) 723-1152 | D90: 3C10 | E90: Individual | F90: 240 | G90: 1/20/2023 | H90: 10/31/2025 | I90: 964 | J90: $0.00 | K90: 0
B91: Anchorage, Alaska 99501
A92: Jimenez, Elena | B92: 3230 E 41st Ave. B | C92: (907) 980-6387 | D92: 3D19 | E92: Individual | F92: 150 | G92: 5/26/2020 | H92: 10/31/2025 | I92: 1933 | J92: $0.00 | K92: 0
B93: ANCHORAGE, Alaska 99508
A94: Joe, Amia | B94: 369 Skwentna Dr | C94: (907) 720-3410 | D94: 3D03 | E94: Individual | F94: 155 | G94: 4/18/2024 | H94: 8/31/2025 | I94: 510 | J94: $185.95 | K94: 10.95
B95: Anchorage, Alaska 99504
A96: John-Baptiste, Lolita Jnolewis | B96: Po 211935 | C96: (907) 306-0387 | D96: 3O01 | E96: Individual | F96: 486 | G96: 6/8/2023 | H96: 9/30/2025 | I96: 825 | J96: $0.00 | K96: 0
B97: Anchorage, Alaska 99521-1935
A98: K ROGERS, SANDRA | B98: 2300 D St #108 | C98: (907) 885-1954 | D98: 3C38 | E98: Individual | F98: 245 | G98: 3/23/2020 | H98: 9/30/2025 | I98: 1997 | J98: $0.00 | K98: 0
B99: ANCHORAGE, Alaska 99503
A100: Keodouangdy, Lee | B100: 3315 Manzanilla Lane | C100: (907) 360-1526 | D100: 3N06 | E100: Individual | F100: 460 | G100: 12/29/2023 | H100: 9/30/2025 | I100: 621 | J100: $0.00 | K100: 35.95
B101: Forney, Texas 75126
A102: Keodouangdy, Lee | B102: 3315 Manzanilla Lane | C102: (907) 360-1526 | D102: 3BE2 | E102: Individual | F102: 700 | G102: 1/4/2024 | H102: 9/30/2025 | I102: 615 | J102: $0.00 | K102: 7.95
B103: Forney, Texas 75126
A104: Koller, Kristin | B104: 1451 W 26th Ave #A3 | C104: (907) 952-6187 | D104: 3D10 | E104: Individual | F104: 155 | G104: 7/9/2024 | H104: 9/30/2025 | I104: 428 | J104: $0.00 | K104: 7.95
B105: Anchorage, Alaska 99503
A106: Lampert, Lance | B106: 202 East 26th Avenue Unit 1 | C106: (907) 862-2609 | D106: 3O10 | E106: Individual | F106: 97 | G106: 9/9/2024 | H106: 9/30/2025 | I106: 366 | J106: $0.00 | K106: 0
B107: Anchorage, Alaska 99503
A108: Lancaster, Cathy | B108: 8450 Lake Otis PKWY | C108: (907) 382-0100 | D108: 3C20 | E108: Individual | F108: 200 | G108: 6/27/2025 | H108: 8/31/2025 | I108: 75 | J108: $231.95 | K108: 11.95
B109: Anchorage, Alaska 99507
A110: Langston, Mark | B110: 1311 W 16th Ave | C110: (801) 450-1982 | D110: 3O09 | E110: Individual | F110: 110 | G110: 10/27/2023 | H110: 9/30/2025 | I110: 684 | J110: $0.00 | K110: 0
B111: Anchorage, Alaska 99501
A112: LAW OFFICES, PC, SCHLEHOFER | B112: 2900 BONIFACE PKWY STE 200 | C112: (907) 227-4702 | D112: 3N03 | E112: Individual | F112: 1025 | G112: 12/31/2012 | H112: 9/30/2025 | I112: 4636 | J112: $0.00 | K112: 0
B113: ANCHORAGE, Alaska 99504
A114: LLC, SHAFTEL DELMAN KAUFMAN | B114: 1029 W 3Rd Ave 600 | C114: (907) 276-6015 | D114: 3N04 | E114: Individual | F114: 940 | G114: 9/1/2009 | H114: 9/30/2025 | I114: 5853 | J114: $0.00 | K114: 0
B115: ANCHORAGE, Alaska 99501
A116: LLC, SummitDay | B116: 805 W Fireweed Lane | C116: (907) 248-4336 | D116: 3C46 | E116: Business | F116: 320 | G116: 11/11/2021 | H116: 8/31/2025 | I116: 1399 | J116: $365.00 | K116: 0
B117: Anchorage , Alaska 99503
A118: Long, Melonee | B118: 4105 Hale Court #B | C118: (907) 240-4097 | D118: 3C27 | E118: Individual | F118: 215 | G118: 3/30/2023 | H118: 9/30/2025 | I118: 895 | J118: $0.00 | K118: 0
B119: Anchorage, Alaska 99502
A120: Marcon, Florencia L or Ranulfo R | B120: 4255 Old Seward Hwy Apt 10 | C120: (907) 310-0489 | D120: 3C32 | E120: Individual | F120: 200 | G120: 8/12/2024 | H120: 9/30/2025 | I120: 394 | J120: $0.00 | K120: 7.95
B121: Anchorage, Alaska 99503
A122: Mason, Michael | B122: 3705 Arctic Blvd #1873 | C122: (907) 351-5647 | D122: 3BE4 | E122: Individual | F122: 700 | G122: 5/16/2025 | H122: 9/30/2025 | I122: 117 | J122: $0.00 | K122: 0
B123: Anchorage, Alaska 99503
A124: McKinley, Haylee | B124: PO Box 872303 | C124: (907) 315-5539 | D124: 3W09 | E124: Individual | F124: 200 | G124: 10/30/2024 | H124: 9/30/2025 | I124: 315 | J124: $0.00 | K124: 7.95
B125: Anchorage, Alaska 99687
A126: MEDICAL CENTER, AVANTE | B126: C/O TINA, A/P 915 W NORTHERN LIGHTS BLVD | C126: (907) 770-6700 | D126: 3W07 | E126: Individual | F126: 300 | G126: 12/31/2012 | H126: 9/30/2025 | I126: 4636 | J126: $0.00 | K126: 0
B127: ANCHORAGE, Alaska 99503
A128: MILLER, STEFFANIE | B128: 1041 W 71St | C128: (907) 317-0501 | D128: 3C23 | E128: Individual | F128: 145 | G128: 4/12/2017 | H128: 9/30/2025 | I128: 3073 | J128: $0.00 | K128: 7.95
B129: ANCHORAGE , Alaska 99518
A130: Morgan, Rachel | B130: 2519 Galewood St | C130: (801) 995-2589 | D130: 3D05 | E130: Individual | F130: 155 | G130: 4/27/2024 | H130: 9/30/2025 | I130: 501 | J130: $0.00 | K130: 10.95
B131: Anchorage, Alaska 99508
A132: Morrell (Denali Dental Care), MRussell | B132: 625 E 34Th Avenue ##200 #200 | C132: (907) 274-7691 | D132: 3C18 | E132: Business | F132: 195 | G132: 12/21/2021 | H132: 9/30/2025 | I132: 1359 | J132: $0.00 | K132: 10.95
B133: Anchorage, Alaska 99503
A134: Nashoanak , Amanda | B134: 4011 Merrill Dr | C134: (907) 317-6938 | D134: 3C45 | E134: Individual | F134: 150 | G134: 1/7/2025 | H134: 8/31/2025 | I134: 246 | J134: $177.95 | K134: 7.95
B135: Anchorage, Alaska 99517
A136: Nyak, Manaa | B136: 2326 Cordova St Apt #7 | C136: (907) 917-8140 | D136: 3D18 | E136: Individual | F136: 145 | G136: 3/20/2024 | H136: 9/30/2025 | I136: 539 | J136: $0.00 | K136: 7.95
B137: Anchorage, Alaska 99501
A138: OBRIEN, PATRICIA | B138: PO BOX 241852 | C138: (907) 740-0531 | D138: 3C26 | E138: Individual | F138: 140 | G138: 8/14/2019 | H138: 7/31/2025 | I138: 2219 | J138: $395.00 | K138: 0
B139: ANCHORAGE, Alaska 99524
A140: PARTNERSHIP, PEBBLE | B140: ATTN: ACCOUNTING 3201 C STREET, SUITE 404 | C140: (907) 929-2058 | D140: 3D08 | E140: Individual | F140: 155 | G140: 4/30/2014 | H140: 9/30/2025 | I140: 4151 | J140: $0.00 | K140: 0
B141: ANCHORAGE, Alaska 99503
A142: PHILLIPS, SHON | B142: 4862 MILLS DRIVE | C142: (907) 887-3099 | D142: 3O08 | E142: Individual | F142: 305 | G142: 2/5/2018 | H142: 9/30/2025 | I142: 2774 | J142: $0.00 | K142: 0
B143: ANCHORAGE, Alaska 99508
A144: Pree, Dianna | B144: 3705 Arctic Blvd 2797 | C144: (907) 240-2268 | D144: 3C22 | E144: Individual | F144: 215 | G144: 7/30/2021 | H144: 9/30/2025 | I144: 1503 | J144: $0.00 | K144: 0
B145: Anchorage, Alaska 99503
A146: Pree, Dianna | B146: 3705 Arctic Blvd 2797 | C146: (907) 240-2268 | D146: 3C33 | E146: Individual | F146: 215 | G146: 8/24/2022 | H146: 9/30/2025 | I146: 1113 | J146: $0.00 | K146: 0
B147: Anchorage, Alaska 99503
A148: PROCH, JAMES | B148: 645 G St. PO Box A54 | C148: (907) 744-4234 | D148: 3D09 | E148: Individual | F148: 165 | G148: 3/10/2020 | H148: 9/30/2025 | I148: 2010 | J148: $0.00 | K148: 7.95
B149: ANCHORAGE, Alaska 99501
A150: Puckett, Austin | B150: 1036 M St | C150: (907) 671-9729 | D150: 3D13 | E150: Individual | F150: 155 | G150: 1/27/2025 | H150: 7/31/2025 | I150: 226 | J150: $471.90 | K150: 10.95
B151: Anchorage, Alaska 99501
A152: RANA, BINIT | B152: 2601 W 34Th Avenue APT 1 | C152: (907) 631-1211 | D152: 3D20 | E152: Individual | F152: 155 | G152: 3/1/2024 | H152: 9/30/2025 | I152: 558 | J152: $0.00 | K152: 0
B153: ANCHORAGE, Alaska 99517
A154: Reynolds, Lee | B154: 6003 Gull Way | C154: (907) 229-3025 | D154: 3D17 | E154: Individual | F154: 165 | G154: 4/23/2021 | H154: 9/30/2025 | I154: 1601 | J154: $0.00 | K154: 0
B155: Juneau, Alaska 99801
A156: Richardson, Sabrina | B156: 5831 Raymond Dr | C156: (907) 312-4032 | D156: 3D15 | E156: Individual | F156: 145 | G156: 7/1/2025 | H156: 7/31/2025 | I156: 71 | J156: $422.90 | K156: 8.95
B157: Anchorage, Alaska 99507
A158: Ruthe, John | B158: 8238 Peck Ave | C158: (907) 306-3132 | D158: 3C01 | E158: Individual | F158: 345 | G158: 1/29/2020 | H158: 9/30/2025 | I158: 2051 | J158: $0.00 | K158: 0
B159: Anchorage, Alaska 99504
A160: School District, Anchorage | B160: A/P 5530 E Northern Lights Blvd | C160: (907) 742-4000 | D160: 3BS2 | E160: Individual | F160: 1475 | G160: 12/31/2012 | H160: 9/30/2025 | I160: 4636 | J160: $0.00 | K160: 0
B161: Anchorage, Alaska 99504
A162: Schuch, Brian | B162: 617 W 18Th Avenue | C162: (425) 420-5278 | D162: 3D04 | E162: Individual | F162: 155 | G162: 5/13/2024 | H162: 9/30/2025 | I162: 485 | J162: $0.00 | K162: 7.95
B163: anch, Alaska 99503
A164: SIMON, STEPHEN | B164: 1740 EAST FAIRVIEW AVE 36 | C164: (907) 980-7425 | D164: 3C24 | E164: Individual | F164: 240 | G164: 12/11/2015 | H164: 9/30/2025 | I164: 3561 | J164: $0.00 | K164: 0
B165: MERIDIAN, Idaho 83642
A166: Suydam, Stefanie | B166: 10611 Elmore Road | C166: (907) 512-5353 | D166: 3D07 | E166: Individual | F166: 155 | G166: 9/18/2024 | H166: 9/30/2025 | I166: 357 | J166: $0.00 | K166: 0
B167: Anchorage, Alaska 99507
A168: TANAKA, KATSUTAKA | B168: 2121 YORKSHIRE LANE | C168: (907) 274-0951 | D168: 3C48 | E168: Individual | F168: 260 | G168: 12/30/2014 | H168: 9/30/2025 | I168: 3907 | J168: $0.00 | K168: 0
B169: ANCHORAGE, Alaska 99504
A170: Taylor, Hunter | B170: 9113 Lees Ridge Rd | C170: (301) 520-6613 | D170: 3D06 | E170: Individual | F170: 220 | G170: 5/3/2021 | H170: 9/30/2025 | I170: 1591 | J170: $0.00 | K170: 0
B171: Warrenton, Virginia 20186
A172: Thomas, Anna | B172: PO Box 806 | C172: (240) 386-9424 | D172: 3C49 | E172: Individual | F172: 250 | G172: 1/3/2024 | H172: 9/30/2025 | I172: 616 | J172: $0.00 | K172: 20.95
B173: Talkeetna, Alaska 99676
A174: Thorson, Karen L. | B174: 2947 Brittany Drive | C174: (907) 306-0751 | D174: 3D01 | E174: Individual | F174: 140 | G174: 8/11/2025 | H174: 9/30/2025 | I174: 30 | J174: $0.00 | K174: 8.95
B175: Anchorage, Alaska 99504
A176: Tinoco, Lalito | B176: 7011 Scarlero Circle | C176: (907) 570-4603 | D176: 3C41 | E176: Individual | F176: 155 | G176: 1/18/2023 | H176: 9/30/2025 | I176: 966 | J176: $0.00 | K176: 10.95
B177: Achorage, Alaska 99507
A178: Tye, Brenda | B178: 430 W 53Rd Avenue Ste #C | C178: (907) 720-4187 | D178: 3W13 | E178: Individual | F178: 725 | G178: 4/11/2025 | H178: 9/30/2025 | I178: 152 | J178: $0.00 | K178: 8.95
B179: Anchorage, Alaska 99518
A180: Verreydt, Richard | B180: 2547 Arlington | C180: (907) 952-5869 | D180: 3C12 | E180: Individual | F180: 235 | G180: 4/25/2025 | H180: 9/30/2025 | I180: 138 | J180: $0.00 | K180: 0
B181: Anchorage, Alaska 99517
A182: Verreydt, Richard | B182: 2547 Arlington | C182: (907) 952-5869 | D182: 3C11 | E182: Individual | F182: 235 | G182: 4/19/2024 | H182: 9/30/2025 | I182: 509 | J182: $0.00 | K182: 0
B183: Anchorage, Alaska 99517
A184: Vivian, Cameron | B184: PO Box 90090 | C184: (907) 227-0034 | D184: 3N07 | E184: Individual | F184: 270 | G184: 7/8/2025 | H184: 9/30/2025 | I184: 64 | J184: $0.00 | K184: 0
B185: Anchorage, Alaska 99509
A186: VON GEMMINGEN, BRETT | B186: 637 W. 3rd Ave | C186: (907) 278-5935 | D186: 3C35 | E186: Individual | F186: 200 | G186: 12/31/2012 | H186: 9/30/2025 | I186: 4636 | J186: $0.00 | K186: 0
B187: ANCHORAGE, Alaska 99501
A188: Waworuntu, Daria Ariani | B188: 515 102nd Ave SE Apt #102 | C188: 6781337944888 | D188: 3C09 | E188: Individual | F188: 235 | G188: 3/5/2024 | H188: 9/30/2025 | I188: 554 | J188: $0.00 | K188: 20.95
B189: Bellevue, Washington 98004
A190: Williams, Jamaal | B190: 9 Wofford Pine Dr Apt 7201 | C190: (907) 720-0942 | D190: 3N05 | E190: Individual | F190: 165 | G190: 3/6/2025 | H190: 8/31/2025 | I190: 188 | J190: $185.00 | K190: 0
B191: Taylors, South Carolina 29687
A192: Wilson, Alyson | B192: 6314 Spruce Meadows Drive | C192: (907) 268-9481 | D192: 3D12 | E192: Individual | F192: 155 | G192: 9/22/2023 | H192: 9/30/2025 | I192: 719 | J192: $0.00 | K192: 10.95
B193: Anchorage, Alaska 99507 | J193: Monthly
E194: Monthly Rent | F194: =SUM(F2:F192) -> 30663 | J194: Tenant Insurance | K194: =SUM(K2:K192) -> 354.4

Sheet P&L
A2: Financial Row | B2: Prior Year (Jan 2024 - Adjust 2024)
A3: Ordinary Income/Expense
A4: Income
A5: 40000 - Income
A6: 4000 - Parking Income
A7: 40002 - Parking Service
A8: 40005 - Collection Notice Income (Non-Shared) | B8: 4025
A9: 40007 - Parking Service Rentals | B9: 218844.64
A10: Total - 40002 - Parking Service | B10: =SUM(B8:B9) -> 222869.64
A11: 40011 - Other Parking Service | B11: 4548.91
A12: 40015 - Other Parking Service - Retail | B12: 136
A13: Total - 4000 - Parking Income | B13: =SUM(B10:B12) -> 227554.55
A14: 40101 - Property Income
A15: 40102 - Rental Income | B15: 362131.91
A16: Total - 40101 - Property Income | B16: =SUM(B15) -> 362131.91
A17: 40201 - Other Income
A18: 40202 - Fee Income | B18: 0
A19: Total - 40201 - Other Income | B19: =SUM(B18) -> 0
A20: Total - 40000 - Income | B20: =SUM(B13,B16,B19) -> 589686.46
A21: Total - Income | B21: =SUM(B20) -> 589686.46
A22: Gross Profit | B22: =B21-0 -> 589686.46
A23: Expense
A24: 50000 - Expenses
A25: 50001 - Salaries & Other Compensation
A26: 50002 - Employee Salaries
A27: 50004 - Salaries - Attendants & Cashiers | B27: 249.52
A28: 50007 - Salaries - City & General Managers | B28: 15419.48
A29: 50009 - Salaries - Shift Leads & Supervisors | B29: 12019.41
A30: Total - 50002 - Employee Salaries | B30: =SUM(B27:B29) -> 27688.41
A31: 50021 - Incentives | B31: 2783.45
A32: Total - 50001 - Salaries & Other Compensation | B32: =SUM(B30:B31) -> 30471.86
A33: 50101 - Employee Benefits & Burdens
A34: 50102 - Medical Benefits (Non-Union) | B34: 1831.99
A35: 50110 - Workers Compensation | B35: 601.44
A36: 51805 - Payroll Taxes | B36: 2467.69
A37: Total - 50101 - Employee Benefits & Burdens | B37: =SUM(B34:B36) -> 4901.12
A38: 50201 - Employee Time-Off
A39: 50203 - Vacation Pay | B39: 2149.85
A40: Total - 50201 - Employee Time-Off | B40: =SUM(B39) -> 2149.85
A41: 50301 - Rent Expense
A42: 50302 - Parking Rent | B42: 0
A43: Total - 50301 - Rent Expense | B43: =SUM(B42) -> 0
A44: 50401 - Banking & Credit Cards
A45: 50403 - Credit Card Fees From Net & Fully Reimbursed | B45: 5778.95
A46: Total - 50401 - Banking & Credit Cards | B46: =SUM(B45) -> 5778.95
A47: 50501 - Cable, Internet, Phone & Utilities
A48: 50502 - Utilities Expense | B48: 94304.37
A49: 50503 - Internet Access Expense | B49: 1049.44
A50: 50505 - Telephone Expense | B50: 3426.52
A51: Total - 50501 - Cable, Internet, Phone & Utilities | B51: =SUM(B48:B50) -> 98780.33
A52: 50601 - General & Administrative
A53: 50606 - Dues & Subscriptions | B53: 6586.6
A54: Total - 50601 - General & Administrative | B54: =SUM(B53) -> 6586.6
A55: 50701 - Advertising & Marketing
A56: 50702 - Advertising & Promotion | B56: 5126.01
A57: 50704 - Marketing | B57: 9507.65
A58: Total - 50701 - Advertising & Marketing | B58: =SUM(B56:B57) -> 14633.66
A59: 50901 - Legal & Accounting
A60: 50903 - Accounting-Outside | B60: 172.26
A61: Total - 50901 - Legal & Accounting | B61: =SUM(B60) -> 172.26
A62: 51101 - Professional Services
A63: 51103 - Commission Expense- Net and Fully Reimbursed | B63: 400
A64: 51106 - Network/Server Management | B64: 927
A65: 51108 - Secretarial & Office Service | B65: 8542.78
A66: Total - 51101 - Professional Services | B66: =SUM(B63:B65) -> 9869.78
A67: 51201 - Travel, Meals & Entertainment
A68: 51203 - Meals | B68: 0
A69: 51204 - Travel | B69: 273.98
A70: Total - 51201 - Travel, Meals & Entertainment | B70: =SUM(B68:B69) -> 273.98
A71: 51301 - Supplies
A72: 51302 - General Supplies | B72: 1420.01
A73: Total - 51301 - Supplies | B73: =SUM(B72) -> 1420.01
A74: 51401 - Parking Expenses
A75: 51402 - Parking Maintenance & Repairs | B75: 69833.03
A76: 51403 - Parking Common Area Maintenance | B76: -14710.92
A77: 51404 - Snow Removal / Sweeping | B77: 0
A78: Total - 51401 - Parking Expenses | B78: =SUM(B75:B77) -> 55122.11
A79: 51601 - Contractual Services
A80: 51606 - Security/Fire Contract | B80: 4788
A81: Total - 51601 - Contractual Services | B81: =SUM(B80) -> 4788
A82: 51701 - Management Fees
A83: 51703 - Outside Property Management Fees | B83: 699.45
A84: Total - 51701 - Management Fees | B84: =SUM(B83) -> 699.45
A85: Total - 51801 - Property Taxes | B85: 81314
A86: Total - 50000 - Expenses | B86: =SUM(B32,B37,B40,B43,B46,B51,B54,B58,B61,B66,B70,B73,B78,B81,B84,B85) -> 316961.96
A87: Total - Expense | B87: =SUM(B86) -> 316961.96
A88: Net Ordinary Income | B88: =B22-B87 -> 272724.5
A89: Net Income | B89: =B88+0 -> 272724.5
